{"text_format":"1","workbook":"xlsx","n_sheets":11,"sheets":["Angaben zur Bestellung","Bestellschein","Kindergarten","Sprachen","Mathematik","Natur,Mensch,Gesellschaft","Gestalten","Musik","Bewegung und Sport","Modul","Verschiedenes"],"not_rendered":{"charts":0,"images":1,"macros":1,"external_links":0,"defined_names":16,"comments":0,"pivot_tables":0},"unopened":[],"bounds":{"document_bytes":16777216,"sheet_cells":100000,"rows_first":2000,"rows_last":500,"rows_between":2000,"halvings":0,"cell_chars":16384,"cell_head_chars":4096},"cells_cut":0,"cells_raw":0,"read":"whole","date_system":"1900"}

{"sheet":"Angaben zur Bestellung","index":0,"n_rows":33,"n_cols":2,"rows_kept":33,"cut":false,"hidden":false,"merged":[[6,0,6,4],[0,0,0,4],[2,0,2,4],[5,0,5,1],[21,0,21,1]]}
["In der vorliegenden Arbeitsmappe finden Sie die Bestellscheine zum Zyklus 1\nLehrmittelverzeichnis \n2018 / 2019\n"]
[]
["Die eingetragenen Bestellmengen in den einzelnen Arbeitsblättern werden direkt auf die\nArbeitsblätter in 'Bestellschein Komplett' übertragen. "]
[]
[]
[]
["Das Arbeitsblatt 'Bestellschein Komplett' dient nur der Übersicht und ist nicht editierbar. \nDieses Arbeitsblatt zieht alle eingegebenen Bestellmengen der einzelnen Fachbereichen zusammen. Bitte die Bestellmengen in den einzelnen Arbeitsblättern der Fachbereiche eintragen."]
[]
["Bitte geben Sie EINMALIG vor der Bestelleingabe die gewünschten Lieferdaten an:"]
[]
["Kundennummer:",0]
["(falls vorhanden)"]
["Vorname und Name:"]
["Schulhaus und Stufe:"]
["Strasse:"]
["PLZ und Ort:"]
["Telefon:"]
["eMail:"]
[]
["Datum:","2018-03-26"]
[]
[]
[]
[]
[null,"Didaktisches Zentrum Uri"]
[null,"Kantonaler Lehrmittelverlag Uri"]
[null,"Schulhaus Florentini"]
[null,"Postfach 349"]
[null,"CH-6460 Altdorf"]
[]
[null,"Tel.: 041 / 870 80 12"]
[null,"Fax: 041 / 871 35 00"]
[null,"www.dzuri.ch"]

{"sheet":"Bestellschein","index":1,"n_rows":6,"n_cols":9,"rows_kept":6,"cut":false,"hidden":false,"merged":[[0,4,0,5],[1,4,1,7],[2,4,2,7],[3,4,3,7]]}
[null,"Kundennummer",{"$f":"'Angaben zur Bestellung'!$B$11","v":0},null,null,null,"Datum:",{"$f":"'Angaben zur Bestellung'!B20","v":"2018-03-26"}]
[null,"Vorname & Name:",{"$f":"'Angaben zur Bestellung'!B13","v":0},"PlZ , Ort",{"$f":"'Angaben zur Bestellung'!B16","v":0}]
[null,"Schulhaus & Stufe",{"$f":"'Angaben zur Bestellung'!B14","v":0},"Telefon",{"$f":"'Angaben zur Bestellung'!B17","v":0},null,null,null,"Gesamttotal"]
[null,"Strasse:",{"$f":"'Angaben zur Bestellung'!B15","v":0},"eMail:",{"$f":"'Angaben zur Bestellung'!B18","v":0},null,null,null,{"$f":"SUM(I7:I991)","v":0}]
["Zuerst SPEICHERN, dann ausdrucken!"]
["Kompetenzbereich","TNR","Artikeltitel","Verlag","Stufe","KTG","VKP","Menge","Betrag"]

{"sheet":"Kindergarten","index":2,"n_rows":200,"n_cols":9,"rows_kept":200,"cut":false,"hidden":false,"merged":[[183,3,183,5],[1,4,1,7],[2,4,2,7],[3,4,3,7],[183,1,183,2],[187,1,187,2],[184,1,184,2],[186,3,186,5],[187,3,187,5],[188,3,188,5],[188,1,188,2],[185,1,185,2],[184,3,184,5],[185,3,185,5],[186,1,186,2],[189,1,189,2],[189,3,189,5],[190,1,190,2],[190,3,190,5],[191,1,191,2],[191,3,191,5],[192,1,192,2],[192,3,192,5],[193,1,193,2],[193,3,193,5],[194,1,194,2],[194,3,194,5],[199,0,199,7],[195,1,195,2],[195,3,195,5],[196,1,196,2],[196,3,196,5],[197,1,197,2],[197,3,197,5]]}
[null,"Kundennummer",{"$f":"'Angaben zur Bestellung'!$B$11","v":0},null,null,null,"Datum:",{"$f":"'Angaben zur Bestellung'!B20","v":"2018-03-26"},"Kindergarten"]
[null,"Vorname & Name:",{"$f":"'Angaben zur Bestellung'!B13","v":0},"PlZ , Ort",{"$f":"'Angaben zur Bestellung'!B16","v":0},null,null,null,{"$f":"SUM(I7:I1003)","v":0}]
[null,"Schulhaus & Stufe:",{"$f":"'Angaben zur Bestellung'!B14","v":0},"Telefon",{"$f":"'Angaben zur Bestellung'!B17","v":0},null,null,null,"Gesamttotal"]
[null,"Strasse:",{"$f":"'Angaben zur Bestellung'!B15","v":0},"eMail:",{"$f":"'Angaben zur Bestellung'!B18","v":0},null,null,null,{"$f":"Bestellschein!$I$4","v":0}]
[]
["Kompetenzbereich","TNR","Artikeltitel","Verlag","Stufe","KTG","VKP","Menge","Betrag"]
["Deutsch","K01.2915","Rhythmisches Sprechzeichnen","ProKiga",null,"f",48,null,{"$f":"G7*H7","v":0}]
["Deutsch","K01.2916","Phonologische Bewusstheit","ProKiga",null,"f",48,null,{"$f":"G8*H8","v":0}]
["Deutsch","K01.2908","Hören, Lauschen, Lernen 1, Set","SBZ",null,"f",55.9,null,0]
["Deutsch","K01.2912","Hören, Lauschen, Lernen 2, Set","SBZ",null,"f",115,null,0]
["Deutsch","K01.2911","LEZUS (Sprachförderung)","Schulverlag+",null,"f",132,null,0]
["Deutsch","K01.2913","Kon-Lab-Programm","Schubi",null,"f",199,null,0]
["Deutsch","K01.2917","Parcours Sprache (Sprachförderung)","Schulverlag+","KG/US","f",96,null,0]
["Deutsch","K01.2924","Denken, sprechen, handeln","4bis8","KG/US","f",49,null,0]
["Deutsch","K01.2940","hörschlau Reime-Werkstatt","LVSO",null,"f",66,null,0]
["Deutsch","K01.2941","hörschlau Silben-Werkstatt","LVSO",null,"f",66,null,0]
["Deutsch","K01.2942","hörschlau Laute-Werkstatt","LVSO",null,"f",66,null,0]
[]
["Deutsch","K01.2950","Mein Sprachschlüssel, Wimmelbilderbuch","Klett","KG/US","f",59,null,0]
["Deutsch","K01.2951","Mein Sprachschlüssel, Bild-Wort-Karten","Klett","KG/US","f",35,null,0]
["Deutsch","K01.2952","Mein Sprachschlüssel, Spielebuch 1","Klett","KG/US","f",14.5,null,0]
["Deutsch","K01.2953","Mein Sprachschlüssel, Spielebuch 2","Klett","KG/US","f",14.5,null,0]
["Deutsch","K01.2954","Mein Sprachschlüssel, Heft 1","Klett","KG/US","f",8.9,null,0]
["Deutsch","K01.2955","Mein Sprachschlüssel, Heft 2","Klett","KG/US","f",8.9,null,0]
["Deutsch","K01.2956","Mein Sprachschlüssel, Audio-CD","Klett","KG/US","f",25,null,0]
["Deutsch","K01.2957","Mein Sprachschlüssel, Handbuch","Klett","KG/US","f",49,null,0]
[]
["Deutsch","K01.2958","Grundbewegungen Vorübungen Basisschrift A4","Schubi","KG/US","f",9.5,null,0]
["Deutsch","K01.2959","Grundbewegungen Vorübungen Basisschrift A3","Schubi","KG/US","f",12.5,null,0]
[]
["Mathematik","K03.3001","KbM, Das Bilderbuch","LMVZ","KG/US","f",37.6,null,0]
["Mathematik","K03.3009","KbM, Ordner Kindergarten","LMVZ","KG/US","f",69.7,null,0]
["Mathematik","K03.3004","KbM, Mappe Zählen und Vergleichen","LMVZ","KG/US","f",12.9,null,0]
["Mathematik","K03.3002","KbM, Ordner Erfahrungen sammeln","LMVZ","KG/US","f",69.7,null,0]
["Mathematik","K03.3003","KbM, Ordner Zusammenhänge erkennen","LMVZ","KG/US","f",80.400000000000006,null,0]
["Mathematik","K03.3005","KbM, Arbeitsheft Zahlen und Ziffern","LMVZ","KG/US","f",10.199999999999999,null,0]
["Mathematik","K03.3007","KbM, Arbeitsheft Muster und Regeln","LMVZ","KG/US","f",10.199999999999999,null,0]
["Mathematik","K03.3008","KbM, Münzen und Noten Klassenset","LMVZ","KG/US","f",16.2,null,0]
["Mathematik","K03.3023","KbM, Knopfformen rot / blau","LMVZ","KG/US","f",38.9,null,0]
["Mathematik","K03.3022","KbM, Formulare-Kopiervorlagen CR","LMVZ","KG/US","f",25.8,null,0]
[]
["Mathematik","K03.3014","bauen und begreifen DUPLO Grundbauset","Educatec","KG/US","f",130,null,0]
["Mathematik","K03.3020","\"Ein\"-Stein, Handbuch und Arbeitsmappe","Walker Luzia","KG/US","f",70,null,0]
["Mathematik","P27.8065","Ali singed Mathi, Liederheft mit CD","LMVZ","KG-2.","f",34.4,null,0]
["Mathematik","K03.3021","Mathekinder - Kompetenzorientiert lernen","4bis8","KG/US","f",59,null,0]
[]
["Mathematik","K03.3015","Das kleine Denkspielbuch","Klett","KG/US","f",42.4,null,0]
["Mathematik","K03.3016","Das kleine Zahlenbuch 1","Klett","KG/US","f",42.4,null,0]
["Mathematik","K03.3017","Das kleine Zahlenbuch 2","Klett","KG/US","f",42.4,null,0]
["Mathematik","K03.3018","Das kleine Formenbuch 1","Klett","KG/US","f",42.4,null,0]
["Mathematik","K03.3019","Das kleine Formenbuch 2","Klett","KG/US","f",42.4,null,0]
["Mathematik","K03.3030","Mosaik (Lernen mit dem Würfelmosaik)","ProKiga","KG/US","f",44,null,0]
["Mathematik","K03.3200","Zahlenbuch Frühförderung, Spiele 1","Klett","KG","f",14.5,null,0]
["Mathematik","K03.3201","Zahlenbuch Frühförderung, Spiele 2","Klett","KG","f",14.5,null,0]
["Mathematik","K03.3202","Zahlenbuch Frühförderung, Spielmaterial 1/2","Klett","KG","f",31,null,0]
["Mathematik","K03.3203","Zahlenbuch Frühförderung, Malheft 1","Klett","KG","f",7.9,null,0]
["Mathematik","K03.3204","Zahlenbuch Frühförderung, Malheft 2","Klett","KG","f",7.9,null,0]
["Mathematik","K03.3205","Zahlenbuch Frühförderung, Zahlenmatten","Klett","KG","f",45,null,0]
["Mathematik","K03.3206","Zahlenbuch Frühförderung, Begleitband","Klett","KG","f",45,null,0]
["Mathematik","K03.3207","Zahlenbuch Frühförderung, Plakat","Klett","KG","f",0,null,0]
[]
["Mathematik","K03.3210","Das Zahlenbuch 0, Schulbuch","Klett","KG/IF","f",9.9,null,0]
["Mathematik","K03.3211","Das Zahlenbuch 0, Arbeitsheft","Klett","KG/IF","f",12.3,null,0]
["Mathematik","K03.3212","Mit Zahlen spielen - Mathematik zw. KG und GS","Klett","KG/IF","f",37.1,null,0]
["Mathematik","K03.3213","Das Zahlenbuch, Fünferfelder aus Holz","Klett","KG/IF","f",12.3,null,0]
["Mathematik","K03.3214","Das Zahlenbuch, Metallbox Zwanzigerfeld","Klett","KG/IF","f",12.3,null,0]
[]
["Natur, Mensch, Gesellschaft","K01.2870","Bockleiter und Zuckerzange (Freispiel)","ProKiga",null,"f",44,null,0]
["Natur, Mensch, Gesellschaft","K01.2918","Zauberblume & Löschkanone (Experimente)","LVSG",null,"f",61.8,null,0]
["Natur, Mensch, Gesellschaft","K01.2905","Tüfteln, forschen, staunen","4bis8",null,"f",37,null,0]
["Natur, Mensch, Gesellschaft","K01.2907","Erlebnis Wald","4bis8",null,"f",49,null,0]
["Natur, Mensch, Gesellschaft","K01.2920","Fuchs, Dachs & Co.","4bis8",null,"f",49,null,0]
["Natur, Mensch, Gesellschaft","K01.2925","Kinder begegnen Natur und Technik, Bilderbuch","LMVZ",null,"f",39.799999999999997,null,0]
["Natur, Mensch, Gesellschaft","K01.2926","Kinder begegnen Natur und Technik, Unterrichtsordner","LMVZ",null,"f",128,null,0]
["Natur, Mensch, Gesellschaft","K01.2927","Kinder begegnen Natur und Technik, Bildkarten","LMVZ",null,"f",39.799999999999997,null,{"$f":"G75*H75","v":0}]
["Natur, Mensch, Gesellschaft","K01.2928","Kinder begegnen Natur und Technik, Liederheft","LMVZ",null,"f",19.8,null,0]
["Natur, Mensch, Gesellschaft","K01.2929","Kinder begegnen Natur und Technik, Audio-CD","LMVZ",null,"f",24.8,null,0]
[]
["Bildnerisches Gestalten","P57.9212","bildÖffner, Grundlagen","Schulverlag+","KG-9.","f*",92.6,null,{"$f":"G79*H79","v":0}]
["Bildnerisches Gestalten","P57.9213","bildÖffner 1","Schulverlag+","KG-2.","f",78,null,0]
["Bildnerisches Gestalten","K01.2904","Mit Stift und Pinsel die Welt entdecken","4bis8",null,"f",44,null,0]
["Bildnerisches Gestalten","K01.2850","Druckfrisch - Alte und neue Drucktechniken","4bis8",null,"f",44,null,0]
[]
["Textiles und Technisches Gestalten","H01.2430","Handlungskompetenz im ttG","Schulverlag+","KG-9.","f",41,null,0]
["Textiles und Technisches Gestalten","P56.9210","Werkweiser 1, Handbuch mit CR","Schulverlag+","KG-2.","o",77.5,null,0]
["Textiles und Technisches Gestalten","P56.9221","formSachen - Tonarbeit im Unterricht","Schulverlag+","KG-9.","f",54,null,0]
["Textiles und Technisches Gestalten","P56.9223","Himmelhoch & Türkisblau","Schulverlag+","KG-3.","f",52,null,0]
["Textiles und Technisches Gestalten","K01.2910","Bewegen, zeichnen, schreiben","4bis8",null,"f",49,null,0]
[]
["Musik","K01.1770","Chäferfäscht, Liederbuch","LVSG",null,"f",24.7,null,0]
["Musik","K01.1771","Chäferfäscht, CD","LVSG",null,"f",27.8,null,0]
["Musik","K01.1772","D'Frösch händ Wösch, Liederbuch","LVSG",null,"f",26.8,null,0]
["Musik","K01.1773","D'Frösch händ Wösch, CD's","LVSG",null,"f",29.9,null,0]
["Musik","K01.1776","Nigel Nagel Neu, Liederbuch","LVSG",null,"f",26.8,null,0]
["Musik","K01.1777","Nigel Nagel Neu, CD's","LVSG",null,"f",29.9,null,0]
["Musik","P50.1750","eifach singe, Liederbuch","LMVZ","KG/US","f",25.2,null,0]
["Musik","P50.1751","eifach singe, Lieder-CD","LMVZ","KG/US","f",25.9,null,0]
["Musik","P50.1752","eifach singe, Playback-CD","LMVZ","KG/US","f",25.9,null,0]
["Musik","K01.2902","fli,fla, flo! Liederheft mit Playback-CD","LMVZ",null,"f",44.8,null,0]
["Musik","K01.2903","fli,fla, flo! Lieder-CD","LMVZ",null,"f",29.8,null,0]
["Musik","P50.1915","Pauseziit (Lieder, Warm-ups)","LMVZ","KG-6.","f",49.8,null,0]
[]
["Musik","K01.1800","Tipolino 1, Schülerbuch","Helbling","KG-2.","f",28.9,null,0]
["Musik","K01.1801","Tipolino 1, Handbuch","Helbling","KG-2.","f",48,null,0]
["Musik","K01.1802","Tipolino 1, Audio-CD's","Helbling","KG-2.","f",130,null,0]
["Musik","K01.1803","Tipolino 1, Paket 1 (Schülerbuch+Handbuch)","Helbling","KG-2.","f",69,null,0]
["Musik","K01.1804","Tipolino 1, Paket 2 (Schülerbuch+Handbuch+CD's)","Helbling","KG-2.","f",175,null,0]
[]
["Bewegung und Sport","P60.2879","Musik bewegt, Bewegungsspiele CD+Karten","BASPO","KG/US","f",24,null,0]
["Bewegung und Sport","P60.2902","Mut tut gut","Ingold","KG/US","f",53.7,null,0]
["Bewegung und Sport","K02.4200","Sternstunden im Kinderturnen","Oekotopia",null,"f",49.9,null,0]
["Bewegung und Sport","K01.2866","Top-Bewegungsspiele, Band 1","LMVZ",null,"f",25,null,0]
["Bewegung und Sport","K02.2871","Tatzentänze Mäuseschwänze","Zytglogge",null,"f",49,null,0]
["Bewegung und Sport","K02.2880","20 Lektionen für die Wassergewöhnung","Schwimmheft",null,"f",24.5,null,0]
["Bewegung und Sport","K02.2885","Gustav Frosch taucht ab, Buch","SBZ",null,"f",19.8,null,0]
["Bewegung und Sport","K02.2886","Gustav Frosch taucht ab, Werkbuch","SBZ",null,"f",28.8,null,0]
["Bewegung und Sport","K02.2887","Gustav Frosch taucht ab, Handpuppe","SBZ",null,"f",16.899999999999999,null,0]
["Bewegung und Sport","K02.2890","Basistests, Polysportive Grundausbildung","Baumberger","KG/US","f",15,null,0]
[]
["Bewegung und Sport","K02.9601","Kidz-Box (Spiele zu Bewegung/Ernährung)","GFCH",null,"f",39,null,0]
["Bewegung und Sport","K02.9603","Znüniblatt (für neu eintretende Kinder)","GFUR",null,"o",0,null,0]
["Bewegung und Sport","K02.9604","Znünibox","GFUR",null,"f",2,null,0]
["Bewegung und Sport","K02.9605","Springseil (für neu eintretende Kinder)","GFUR",null,"o",0,null,0]
["Bewegung und Sport","K02.9610","bewegt und selbstsicher","Schulverlag+","KG/US","f",48,null,0]
[]
["Bewegung und Sport","P60.5000","Kompetenzbox für den Sportunterricht, Karteibox","LMVZ","KG-9.","f",55,null,0]
["Bewegung und Sport","P60.5008","Sportkarten 4-6 Jahre","LMVZ","KG","f",31.4,null,0]
[null,null,null,null,null,null,null,null,0]
["Medien und Informatik","P90.2556","inform@ KG/US 1","LVSG",null,"f",19.600000000000001,null,0]
["Medien und Informatik","P90.2557","inform@ KG/US 2","LVSG",null,"f",19.600000000000001,null,0]
["Medien und Informatik","P90.2560","inform@ KG/US 3","LVSG",null,"f",19.600000000000001,null,0]
[null,null,null,null,null,null,null,null,0]
["Medien und Informatik","P90.2562","Ulla aus dem Eulenwald, Vorlese-Bilderbuch 1","LMVZ",null,"f",29.6,null,0]
["Medien und Informatik","P90.2563","Ulla aus dem Eulenwald, Mal- und Zeichenbuch","LMVZ",null,"f",8,null,0]
["Medien und Informatik","P90.2564","Ulla aus dem Eulenwald, Vorlese-Bilderbuch 2","LMVZ",null,"f",29.6,null,0]
["Medien und Informatik","P90.2565","Ulla aus dem Eulenwald, Filzeule","LMVZ",null,"f",59,null,0]
["Medien und Informatik","P90.2568","Ulla aus dem Eulenwald, Vorlese-Bilderbuch 3","LMVZ",null,"f",29.6,null,0]
[]
["Ratgeber für fremdsprachige Eltern","K04.1001","Unser Kind - Albanisch","Pro Juventute","1. KG","o",0,null,0]
["Ratgeber für fremdsprachige Eltern","K04.1002","Unser Kind - Bosnisch / Kroatisch / Serbisch","Pro Juventute","1. KG","o",0,null,0]
["Ratgeber für fremdsprachige Eltern","K04.1003","Unser Kind - Portugiesisch","Pro Juventute","1. KG","o",0,null,0]
["Ratgeber für fremdsprachige Eltern","K04.1004","Unser Kind - Englisch","Pro Juventute","1. KG","o",0,null,0]
["Ratgeber für fremdsprachige Eltern","K04.1005","Unser Kind - Tamilisch","Pro Juventute","1. KG","o",0,null,0]
["Ratgeber für fremdsprachige Eltern","K04.1006","Unser Kind - Türkisch","Pro Juventute","1. KG","o",0,null,0]
["Ratgeber für fremdsprachige Eltern","K04.1007","Unser Kind - Spanisch","Pro Juventute","1. KG","o",0,null,0]
[]
["Ratgeber für fremdsprachige Eltern","K04.2001","Unser Kind - Albanisch","Pro Juventute","2. KG","o",0,null,{"$f":"G147*H147","v":0}]
["Ratgeber für fremdsprachige Eltern","K04.2002","Unser Kind - Bosnisch / Kroatisch / Serbisch","Pro Juventute","2. KG","o",0,null,0]
["Ratgeber für fremdsprachige Eltern","K04.2003","Unser Kind - Portugiesisch","Pro Juventute","2. KG","o",0,null,0]
["Ratgeber für fremdsprachige Eltern","K04.2004","Unser Kind - Englisch","Pro Juventute","2. KG","o",0,null,0]
["Ratgeber für fremdsprachige Eltern","K04.2005","Unser Kind - Tamilisch","Pro Juventute","2. KG","o",0,null,0]
["Ratgeber für fremdsprachige Eltern","K04.2006","Unser Kind - Türkisch","Pro Juventute","2. KG","o",0,null,0]
["Ratgeber für fremdsprachige Eltern","K04.2007","Unser Kind - Spanisch","Pro Juventute","2. KG","o",0,null,0]
[]
["Verschiedenes","K01.1760","Unterrichtsheft KG (5-Tage-Woche)","VfU",null,"f",23,null,0]
["Verschiedenes","K01.2921","Kindergartenplaner, Buch","ProKiga",null,"f",28,null,0]
["Verschiedenes","P90.1747","Schulkontrolle ","LVUR",null,"o",5.5,null,0]
["Verschiedenes","P90.1800","Zeugnismappe (für neu eintr. Kinder)","LVUR",null,"o",9,null,0]
["Verschiedenes","P90.1805","Zeugnisblätter PC-Fassung (50 Ex.)","LVUR",null,"o",8.4,null,0]
["Verschiedenes","P90.5000","Berufsauftrag für die Lehrpersonen ","LVUR",null,"o",0,null,0]
["Verschiedenes","K01.2923","Portfolio im Kindergarten","ProKiga",null,"f",48,null,0]
[]
["Verschiedenes","K01.2930","individualisieren differenzieren","ProKiga",null,"f",48,null,0]
["Verschiedenes","K01.3000","Lernziel-Karten Kindergarten","LVUR",null,"f",19,null,0]
["Verschiedenes","K01.3001","Beurteilen im Kindergarten, Set Karten+CR","LVUR",null,"f",29,null,0]
["Verschiedenes","K01.3002","Beurteilungskarten im Kindergarten","LVUR",null,"f",15,null,0]
["Verschiedenes","P90.3001","Der Vielfalt Raum und Struktur geben","Schulverlag ",null,"f",38,null,0]
["Verschiedenes","P39.3141","Denkbilder - Mit Kindern das Lernen reflektieren","Schulverlag ",null,"f",38,null,0]
[]
["Verschiedenes","P90.1752","Schulärztliches Untersuchungsblatt Knaben","LVUR",null,"o",2,null,0]
["Verschiedenes","P90.1753","Schulärztliches Untersuchungsblatt Mädchen","LVUR",null,"o",2,null,0]
["Verschiedenes","P90.1755","Gesund durch die Schule (nur obligatorisch für KG)","LVUR","KG","o",0,null,0]
["Verschiedenes","P90.2101","Zahnpflegeset (für neu eintretende Kinder)","Profimed","KG","o",0,null,0]
["Verschiedenes","P90.2102","Zahnbürste M27 (Ersatz)","Profimed","KG/US","f",0,null,0]
[]
["Verschiedenes","K02.9700","Leuchtgürtel","TCS","KG","f",0,null,0]
["Verschiedenes","K02.9800","Regenschutz","TCS","KG","f",0,null,0]
[]
["Verschiedenes","P90.3100","Das leere Buch (SpiralFlex A4+)","Ingold",null,"f",12.5,null,0]
["Verschiedenes","P90.3110","Das leere Buch (SpiralFlex light A4+)","Ingold",null,"f",9.9,null,0]
["Verschiedenes","P90.3120","Das leere Buch (gebunden A4)","Ingold",null,"f",13.5,null,0]
["Verschiedenes","P90.3130","Das leere Buch (Quadro 21x21)","Ingold",null,"f",10.7,null,0]
[null,null,null,null,null,null,null,null,0]
[null,"Artikeltitel",null,"ISBN",null,null,"VKP"]
["Weitere Artikel Wünsche",null,null,null,null,null,null,null,0]
["Weitere Artikel Wünsche",null,null,null,null,null,null,null,0]
["Weitere Artikel Wünsche",null,null,null,null,null,null,null,0]
["Weitere Artikel Wünsche",null,null,null,null,null,null,null,0]
["Weitere Artikel Wünsche",null,null,null,null,null,null,null,0]
["Weitere Artikel Wünsche",null,null,null,null,null,null,null,0]
["Weitere Artikel Wünsche",null,null,null,null,null,null,null,0]
["Weitere Artikel Wünsche",null,null,null,null,null,null,null,0]
["Weitere Artikel Wünsche",null,null,null,null,null,null,null,0]
["Weitere Artikel Wünsche",null,null,null,null,null,null,null,0]
["Weitere Artikel Wünsche",null,null,null,null,null,null,null,0]
["Weitere Artikel Wünsche",null,null,null,null,null,null,null,0]
["Weitere Artikel Wünsche",null,null,null,null,null,null,null,0]
["Weitere Artikel Wünsche",null,null,null,null,null,null,null,0]
[]
["Bitte genauen Titel und ISBN-Nummer angeben!"]

{"sheet":"Sprachen","index":3,"n_rows":179,"n_cols":9,"rows_kept":179,"cut":false,"hidden":false,"merged":[[3,4,3,7],[1,4,1,7],[2,4,2,7]]}
[null,"Kundennummer",{"$f":"'Angaben zur Bestellung'!$B$11","v":0},null,null,null,"Datum:",{"$f":"'Angaben zur Bestellung'!B20","v":"2018-03-26"},"Sprachen"]
[null,"Vorname & Name:",{"$f":"'Angaben zur Bestellung'!B13","v":0},"PlZ , Ort",{"$f":"'Angaben zur Bestellung'!B16","v":0},null,null,null,{"$f":"SUM(I7:I1000)","v":0}]
[null,"Schulhaus & Stufe:",{"$f":"'Angaben zur Bestellung'!B14","v":0},"Telefon",{"$f":"'Angaben zur Bestellung'!B17","v":0},null,null,null,"Gesamttotal"]
[null,"Strasse:",{"$f":"'Angaben zur Bestellung'!B15","v":0},"eMail:",{"$f":"'Angaben zur Bestellung'!B18","v":0},null,null,null,{"$f":"Bestellschein!$I$4","v":0}]
[]
["Kompetenzbereich","TNR","Artikeltitel","Verlag","Stufe","KTG","VKP","Menge","Betrag"]
["Deutsch 1 und 2","K01.2911","LEZUS (Sprachförderung)","Schulverlag+","KG-US","f",132,null,{"$f":"G7*H7","v":0}]
["Deutsch 1 und 2","K01.2913","Kon-Lab-Programm","Schubi",null,"f",199,null,{"$f":"G8*H8","v":0}]
["Deutsch 1 und 2","K01.2917","Parcours Sprache (Sprachförderung)","Schulverlag+","KG-US","f",96,null,0]
["Deutsch 1 und 2","P01.2185","Lesestufen / Dani hat Geburtstag","Klett","IF","f",57.9,null,0]
["Deutsch 1 und 2","P01.2186","Einschätzungsraster Erstsprache Deutsch","Schulverlag+","KG-2. Kl.","f",24,null,0]
["Deutsch 1 und 2","P01.2205","Die Rechtschreibdetektive (Karten/Heft)","Klett","1.-3. Kl.","f",50,null,0]
["Deutsch 1 und 2","P01.2206","AdL mit den Sprachstarken","Klett","1.-6. Kl.","f",39,null,0]
["Deutsch 1 und 2","P01.2190","10x10 Leseanregungen","Erle",null,"f",19.5,null,0]
["Deutsch 1 und 2","P01.2191","10x10 Textzugänge","Erle",null,"f",19,null,0]
["Deutsch 1 und 2","P01.2192","10x10 Spiele für den Sprachunterricht","Erle",null,"f",19.5,null,0]
["Deutsch 1 und 2","P01.2193","10x10 Schreibanregungen","Erle",null,"f",19.5,null,0]
["Deutsch 1 und 2","P01.2210","Schreiben mit allen Sinnen","4bis8","1./2. Kl.","f",39,null,0]
["Deutsch 1 und 2","P01.1094","Lesewerkstatt, CR","LMVZ","1.-6. Kl.","f",69.7,null,0]
[]
["Deutsch 1 und 2 Integrierte Förderung","P01.3000","Einsterns Schwester 1, 6 Themenhefte","Cornelsen","1. Kl.","f",27.5,null,0]
["Deutsch 1 und 2 Integrierte Förderung","P01.3001","Einsterns Schwester 1, Handreichungen","Cornelsen","1. Kl.","f",54.4,null,0]
["Deutsch 1 und 2 Integrierte Förderung","P01.3002","Einsterns Schwester 2, 4 Themenhefte","Cornelsen","2. Kl.","f",28.1,null,0]
["Deutsch 1 und 2 Integrierte Förderung","P01.3003","Einsterns Schwester 2, Handreichungen","Cornelsen","2. Kl.","f",54.4,null,0]
[]
["Deutsch 1","P02.3300","Die Buchstabenreise, Sprachbuch","Klett",null,"a",29.9,null,0]
["Deutsch 1","P02.3301","Die Buchstabenreise, Audio-CD","Klett",null,"a",29.9,null,0]
["Deutsch 1","P02.3302","Die Buchstabenreise, Arbeitsheft","Klett",null,"a",16.5,null,0]
["Deutsch 1","P02.3308","Die Buchstabenreise, Buchstabenheft ","Klett",null,"f",14.3,null,0]
["Deutsch 1","P02.3304","Die Buchstabenreise, Handbuch","Klett",null,"a",89,null,0]
["Deutsch 1","P02.3305","Die Buchstabenreise, Bildkarten","Klett",null,"a",35.9,null,0]
["Deutsch 1","P02.3309","Die Buchstabenreise, Poster Basisschrift","Klett",null,"f",22,null,0]
["Deutsch 1","P02.3310","Die Buchstabenreise, Buchstabenblätter","Klett",null,"f",18.899999999999999,null,0]
["Deutsch 1","P02.3307","Die Buchstabenreise, Lesebox","Klett",null,"f",19.5,null,0]
["Deutsch 1","P02.3311","Die Buchstabenreise, Poster Lesebox","Klett",null,"f",0,null,0]
[]
["Deutsch 1","P02.1700","Leseschlau, Texte 1","LVSO",null,"a",21,null,0]
["Deutsch 1","P02.1701","Leseschlau, Texte 2 ","LVSO",null,"a",21,null,0]
["Deutsch 1","P02.1702","Leseschlau, Texte 3","LVSO",null,"a",21,null,0]
["Deutsch 1","P02.1703","Leseschlau, Handbuch","LVSO",null,"a",48,null,0]
["Deutsch 1","P02.1704","Leseschlau, Lauttafeln/Lesekarten","LVSO",null,"a",40,null,0]
["Deutsch 1","P02.1705","Leseschlau, Werkstätten 1","LVSO",null,"a",73,null,0]
["Deutsch 1","P02.1706","Leseschlau, Werkstätten 2 ","LVSO",null,"a",73,null,0]
["Deutsch 1","P02.1707","Leseschlau, Werkstätten 3","LVSO",null,"a",73,null,0]
["Deutsch 1","P02.1708","Leseschlau, Lesehefte A ","LVSO",null,"a",9.9,null,0]
["Deutsch 1","P02.1709","Leseschlau, Lesehefte B ","LVSO",null,"a",9.9,null,0]
["Deutsch 1","P02.1710","Leseschlau, Lesehefte C","LVSO",null,"a",9.9,null,0]
["Deutsch 1","P02.1721","Leseschlau, Schreibheft","LVSO",null,"f",7.9,null,0]
["Deutsch 1","P02.1713","Leseschlau, CR (25er Mehrfachlizenz)","LVSO",null,"f",340,null,0]
["Deutsch 1","P02.1719","Leseschlau, CR (10er Mehrfachlizenz)","LVSO",null,"f",180,null,0]
["Deutsch 1","P02.1714","Leseschlau, CR (DiscKit zu Mehrfachlizenz)","LVSO",null,"f",11,null,0]
["Deutsch 1","P02.1715","Leseschlau, Anlautbilder","LVSO",null,"a",24,null,0]
["Deutsch 1","P02.1722","Leseschlau, Anlauttabelle","LVSO","Basisschrift","f",8,null,0]
["Deutsch 1","P02.1717","Leseschlau, Kopiervorlagen A","LVSO",null,"a",73,null,0]
["Deutsch 1","P02.1718","Leseschlau, Kopiervorlagen B","LVSO",null,"a",73,null,0]
[]
["Deutsch 1","P02.2000","Tobi, Erstlesebuch","Cornelsen CH",null,"a",20.399999999999999,null,0]
["Deutsch 1","P02.2001","Tobi, Arbeitsheft","Cornelsen CH",null,"a",18.100000000000001,null,0]
["Deutsch 1","P02.2002","Tobi, Kopiervorlagen","Cornelsen CH",null,"a",38,null,0]
["Deutsch 1","P02.2005","Tobi, Basisschriftlehrgang","Cornelsen CH",null,"f",16.7,null,0]
[]
["Deutsch 1","P02.1730","eintauCHen 1, Bildergeschichten","LVSO","KG-1. Kl.","f",58,null,0]
["Deutsch 1","P02.1731","eintauCHen 2, Bildergeschichten","LVSO","1.-2. Kl.","f",58,null,0]
["Deutsch 1","P02.1732","Lesen. Das Training 1, Mappe","Schulverlag+","1.-3. Kl.","f",23.6,null,0]
["Deutsch 1","P02.1733","Lesen. Das Training 1, Kommentar","Schulverlag+","1.-3. Kl.","f",15.6,null,0]
[]
["Deutsch 2","P04.1200","Das Lesebuch","Schulverlag+","2./3. Kl.","f",23,null,0]
["Deutsch 2","P04.1201","Das Lesebuch, Kommentar","Schulverlag+","2./3. Kl.","f",78,null,0]
["Deutsch 2","P02.1731","eintauCHen 2, Bildergeschichten","LVSO","1.-2. Kl.","f",58,null,0]
["Deutsch 2","P02.1732","Lesen. Das Training 1, Mappe","Schulverlag+","1.-3. Kl.","f",23.6,null,0]
["Deutsch 2","P02.1733","Lesen. Das Training 1, Kommentar","Schulverlag+","1.-3. Kl.","f",15.6,null,0]
[]
["Deutsch 2","P04.2500","Sprachfenster, Sprachbuch","LMVZ",null,"f",28.3,null,0]
["Deutsch 2","P04.2501","Sprachfenster, Handbuch","LMVZ",null,"f",63.3,null,{"$f":"G74*H74","v":0}]
["Deutsch 2","P04.2502","Sprachfenster, Themenordner 1","LMVZ",null,"f",51.8,null,0]
["Deutsch 2","P04.2503","Sprachfenster, Themenordner 2","LMVZ",null,"f",51.8,null,0]
["Deutsch 2","P04.2504","Sprachfenster, Kartei Grund-Set","LMVZ",null,"f",63.3,null,0]
["Deutsch 2","P04.2505","Sprachfenster, Kartei Erweiterungs-Set","LMVZ",null,"f",40.4,null,0]
["Deutsch 2","P04.2506","Sprachfenster, Kartei DaZ-Set","LMVZ",null,"f",40.4,null,0]
[]
["Deutsch 2","P04.2600","Die Sprachstarken 2, Sprachbuch","Klett",null,"o",29,null,0]
["Deutsch 2","P04.2601","Die Sprachstarken 2, Arbeitsheft","Klett",null,"o",18,null,0]
["Deutsch 2","P04.2602","Die Sprachstarken 2, Kommentar","Klett",null,"o",85,null,0]
["Deutsch 2","P04.2603","Die Sprachstarken 2, Audio-CD","Klett",null,"o",33,null,0]
["Deutsch 2","P04.2604","Die Sprachstarken 2/3, Karteikarten","Klett",null,"f",33,null,0]
["Deutsch 2","P04.2605","Die Sprachstarken 2, Handreichungen DaZ","Klett",null,"f",24.5,null,0]
[null,null,null,null,null,null,null,null,0]
["Deutsch 1 und 2 Wörterbücher","P09.1050","Suchbuch, Schülerbuch","LVSG","1./2. Kl.","f",25.5,null,0]
["Deutsch 1 und 2 Wörterbücher","P09.1051","Suchbuch, Kommentar","LVSG","1./2. Kl.","f",39,null,0]
["Deutsch 1 und 2 Wörterbücher","P09.1052","Suchbuch, Lupe (Set à 10 Ex.)","LVSG","1./2. Kl.","f",7.5,null,0]
["Deutsch 1 und 2 Wörterbücher","P09.1053","Suchbuch, CR Einzellizenz - Privat","LVSG","1./2. Kl.","f",60,null,0]
["Deutsch 1 und 2 Wörterbücher","P09.1054","Suchbuch, CR Mehrfachlizenz 10er","LVSG","1./2. Kl.","f",166,null,0]
["Deutsch 1 und 2 Wörterbücher","P09.1055","Suchbuch, CR Mehrfachlizenz 25er","LVSG","1./2. Kl.","f",300,null,0]
["Deutsch 1 und 2 Wörterbücher","P09.1056","Suchbuch, DiscKit für Mehrfachlizenz","LVSG","1./2. Kl.","f",11,null,0]
[]
["Deutsch 1 und 2 Wörterbücher","P09.1058","Findibus, Schülerbuch","LVSG","2./3. Kl.","f",27,null,0]
["Deutsch 1 und 2 Wörterbücher","P09.1059","Findibus, Auftragskarten","LVSG","2./3. Kl.","f",8.5,null,0]
["Deutsch 1 und 2 Wörterbücher","P09.1060","Findibus, Kommentar","LVSG","2./3. Kl.","f",31,null,0]
["Deutsch 1 und 2 Wörterbücher","P09.1063","Fast alle meine Wörter, Wörterheft","LMVZ","2. Kl.","f",9,null,0]
["Deutsch 1 und 2 Wörterbücher","P09.1064","Fast alle meine Wörter, ABC-Schritte","LMVZ","2. Kl.","f",7.4,null,0]
["Deutsch 1 und 2 Wörterbücher","P09.1070","Wörterfuchs, Schülerkartei","LVSO","1.-3. Kl.","f",24,null,0]
["Deutsch 1 und 2 Wörterbücher","P09.1071","Wörterfuchs, Kommentar","LVSO","1.-3. Kl.","f",12,null,0]
[]
["Deutsch 1 und 2 Schreiben","P10.1512","ABC 1, Schreibheft Basisschrift","LMVZ","1./2.","f",11.4,null,0]
["Deutsch 1 und 2 Schreiben","P10.1513","ABC 2, Schreibheft Vorübungen","LMVZ","1./2.","f",5.2,null,0]
["Deutsch 1 und 2 Schreiben","P10.1514","ABC 3, Schreibheft für Rechtshänder","LMVZ","2./3.","f",11.4,null,0]
["Deutsch 1 und 2 Schreiben","P10.1515","ABC 3, Schreibheft für Rechts- und Linkshänder","LMVZ","2./3.","f",11.4,null,0]
["Deutsch 1 und 2 Schreiben","P10.1516","ABC 3, Schreibheft für Linkshänder","LMVZ","2./3.","f",11.4,null,0]
["Deutsch 1 und 2 Schreiben","P10.1517","ABC 1-3, Plakat Basisschrift","LMVZ","1.-3.","f",19.8,null,0]
["Deutsch 1 und 2 Schreiben","P10.1518","ABC 1-2, Buchstabenset Basisschrift","LMVZ","1./2.","f",26.5,null,0]
[]
["Deutsch 1 und 2 Schreiben","P10.1525","Bahnen spiegeln, Kopiervorlagen","Ingold","KG/US","f",37.799999999999997,null,0]
["Deutsch 1 und 2 Schreiben","P10.1526","Spuren malen, Heft","Ingold","KG/US","f",14.5,null,0]
["Deutsch 1 und 2 Schreiben","P10.1527","Formen zaubern, Heft","Ingold","US","f",14.5,null,0]
["Deutsch 1 und 2 Schreiben","P10.1528","Formen spiegeln, Heft","Ingold","KG/US","f",14.5,null,0]
["Deutsch 1 und 2 Schreiben","P10.1600","Basilo 1, Formblätter","Ingold","1.","f",48,null,0]
["Deutsch 1 und 2 Schreiben","P10.1601","Basilo 1, Schreibheft","Ingold","1.","f",9.6999999999999993,null,0]
["Deutsch 1 und 2 Schreiben","P10.1602","Basilo 2, Formblätter","Ingold","2.","f",48,null,0]
["Deutsch 1 und 2 Schreiben","P10.1603","Basilo 2, Schreibheft","Ingold","2.","f",9.6999999999999993,null,0]
["Deutsch 1 und 2 Schreiben","P10.1605","Basilo, Poster Basisschrift","Ingold","1./2.","f",27.5,null,0]
["Deutsch 1 und 2 Schreiben","P10.1606","Basilo, Buchstabentafeln Basisschrift","Ingold","1./2.","f",48,null,0]
[]
["Deutsch 1 und 2 Schreiben","K01.2958","Grundbewegungen Vorübungen Basisschrift A4","Schubi","KG/US","f",9.5,null,0]
["Deutsch 1 und 2 Schreiben","P10.1610","Deutschschweizer Basisschrift","Schubi","1. Kl.","f",9.5,null,0]
["Deutsch 1 und 2 Schreiben","P10.1611","Deutschschweizer Basisschrift mit links","Schubi","1. Kl.","f",9.5,null,0]
["Deutsch 1 und 2 Schreiben","P10.1612","Erste Verbindungen","Schubi","2. Kl.","f",9.5,null,0]
["Deutsch 1 und 2 Schreiben","P10.1613","Erste Buchstabenfolgen","Schubi","2. Kl.","f",9.5,null,0]
["Deutsch 1 und 2 Schreiben","P10.1614","Poster zur Deutschschweizer Basisschrift","Schubi","1.-4.","f",32.9,null,0]
["Deutsch 1 und 2 Schreiben","P10.1618","Schreiblehrgang Ziffern","Schubi","1./2.","f",9.5,null,{"$f":"G129*H129","v":0}]
[]
["Deutsch 1 und 2 Schreiben","P10.1800","Unterwegs zur persönlichen Handschrift (neu)","LVLU","KG-4.","a",59,null,0]
["Deutsch 1 und 2 Schreiben","P10.1801","Unterwegs zur persönlichen Handschrift, Zusatz","LVLU","KG-4.","a",10,null,0]
["Deutsch 1 und 2 Schreiben","P10.1802","Arbeitsheft Buchstaben und Rundwenden","LVLU","2. Kl.","f",6.9,null,0]
["Deutsch 1 und 2 Schreiben","P10.1805","Basisschrift, Massstab 30 cm (Set à 10 Ex.)","LVLU","KG-4. Kl.","f",12,null,0]
[]
["Deutsch 1 und 2 DaZ","P11.3000","Hoppla 1, Schülerbuch","LMVZ","KG/1. Kl.","f",25.5,null,{"$f":"G136*H136","v":0}]
["Deutsch 1 und 2 DaZ","P11.3001","Hoppla 1, Arbeitsheft A","LMVZ","KG/1. Kl.","f",9.9,null,0]
["Deutsch 1 und 2 DaZ","P11.3002","Hoppla 1, Arbeitsheft B","LMVZ","KG/1. Kl.","f",9.9,null,0]
["Deutsch 1 und 2 DaZ","P11.3003","Hoppla 1, Audio-CD","LMVZ","KG/1. Kl.","f",32,null,0]
["Deutsch 1 und 2 DaZ","P11.3004","Hoppla 1, Kommentar mit CR","LMVZ","KG/1. Kl.","f",58,null,0]
["Deutsch 1 und 2 DaZ","P11.3010","Hoppla 2, Schülerbuch","LMVZ","1./2. Kl.","f",25.5,null,0]
["Deutsch 1 und 2 DaZ","P11.3011","Hoppla 2, Arbeitsheft A","LMVZ","1./2. Kl.","f",9.9,null,0]
["Deutsch 1 und 2 DaZ","P11.3012","Hoppla 2, Arbeitsheft B","LMVZ","1./2. Kl.","f",9.9,null,0]
["Deutsch 1 und 2 DaZ","P11.3013","Hoppla 2, Audio-CD","LMVZ","1./2. Kl.","f",32,null,0]
["Deutsch 1 und 2 DaZ","P11.3014","Hoppla 2, Kommentar mit CR","LMVZ","1./2. Kl.","f",58,null,0]
["Deutsch 1 und 2 DaZ","P11.3020","Hoppla 3, Schülerbuch","LMVZ","2./3. Kl.","f",25.5,null,0]
["Deutsch 1 und 2 DaZ","P11.3021","Hoppla 3, Arbeitsheft A","LMVZ","2./3. Kl.","f",9.9,null,0]
["Deutsch 1 und 2 DaZ","P11.3022","Hoppla 3, Arbeitsheft B","LMVZ","2./3. Kl.","f",9.9,null,0]
["Deutsch 1 und 2 DaZ","P11.3023","Hoppla 3, Audio-CD's","LMVZ","2./3. Kl.","f",32,null,0]
["Deutsch 1 und 2 DaZ","P11.3024","Hoppla 3, Kommentar mit CR","LMVZ","2./3. Kl.","f",58,null,0]
["Deutsch 1 und 2 DaZ","P11.3040","Hoppla 1-4, Lieder-CD ","LMVZ","KG-3. Kl.","f",54,null,0]
["Deutsch 1 und 2 DaZ","P11.3050","Hoppla 1/2, Poster (16 St.) ","LMVZ","KG-3. Kl.","f",24,null,0]
[]
["Deutsch 1 und 2 DaZ","P11.3300","Wörterbrücke, Albanisch","LMVZ","1.-9. Kl.","f",12.9,null,0]
["Deutsch 1 und 2 DaZ","P11.3301","Wörterbrücke, Türkisch","LMVZ","1.-9. Kl.","f",12.9,null,0]
["Deutsch 1 und 2 DaZ","P11.3302","Wörterbrücke, Portugiesisch","LMVZ","1.-9. Kl.","f",12.9,null,0]
["Deutsch 1 und 2 DaZ","P11.3303","Wörterbrücke, Serb./Kroat./Bosn.","LMVZ","1.-9. Kl.","f",12.9,null,0]
["Deutsch 1 und 2 DaZ","P11.3310","Grundschulwörterbuch Deutsch","Langenscheidt","1.-4. Kl.","f",21.5,null,0]
["Deutsch 1 und 2 DaZ","P11.3311","Taschenwörterbuch Deutsch als Fremdsprache","Langenscheidt","ab 2. Kl.","f",27.9,null,0]
[]
["Deutsch 1 und 2 DaZ","P11.3400","Dingsda, Grundwortschatz DaZ","Schulverlag+","1.-4. Kl.","f",29.8,null,0]
["Deutsch 1 und 2 DaZ","P11.3401","Fachdingsda, Grundwortschatz DaZ","Schulverlag+","5.-9. Kl.","f",29.8,null,0]
["Deutsch 1 und 2 DaZ","P11.3402","Multidingsda, CR Grundwortschatz","LMVZ","KG-4. Kl.","f",69.7,null,0]
["Deutsch 1 und 2 DaZ","P11.3403","Multidingsda, Bilderbuch mit CD","LMVZ","KG-4. Kl.","f",39.6,null,0]
["Deutsch 1 und 2 DaZ","P11.3500","Deine Sprache - meine Sprache","LMVZ","1.-9. Kl.","f",39.200000000000003,null,0]
["Deutsch 1 und 2 DaZ","P11.3510","Die Sprachschatzkiste","Schubi","KG","f",49.95,null,0]
["Deutsch 1 und 2 DaZ","P11.3511","Die Sprachschatzkarte","Schubi","US","f",49.95,null,0]
["Deutsch 1 und 2 DaZ","P11.3505","DaZ unterrichten, Hörverstehen und Sprechen","Schulverlag+","1.-9.","f",42,null,0]
[null,null,null,null,null,null,null,null,0]
["Deutsch 1 und 2 DaZ","P11.3900","Sprachgewandt, Test-Set KG/1","LMVZ","KG-1. Kl.","f*",78,null,0]
["Deutsch 1 und 2 DaZ","P11.3901","Sprachgewandt, Einschätzungsbogen","LMVZ","KG-1. Kl.","f*",12.5,null,0]
["Deutsch 1 und 2 DaZ","P11.3902","Sprachgewandt, Testanleitung Stufe 1","LMVZ","KG-1. Kl.","f*",15.6,null,0]
["Deutsch 1 und 2 DaZ","P11.3903","Sprachgewandt, Testanleitung Stufe 2","LMVZ","KG-1. Kl.","f*",15.6,null,0]
["Deutsch 1 und 2 DaZ","P11.3904","Sprachgewandt, Testanleitung Stufe 3","LMVZ","KG-1. Kl.","f*",15.6,null,0]
[null,null,null,null,null,null,null,null,0]
["Deutsch 1 und 2 DaZ","P11.4000","Sprachgewandt, Test-Set 2-9","LMVZ","2.-9. Kl.","f*",57.2,null,0]
["Deutsch 1 und 2 DaZ","P11.4001","Sprachgewandt, Einschätzungsbogen","LMVZ","2.-9. Kl.","f*",12.5,null,0]
["Deutsch 1 und 2 DaZ","P11.4002","Sprachgewandt, Lesetest 2","LMVZ","2. Kl.","f*",17.7,null,0]
["Deutsch 1 und 2 DaZ","P11.4002","Sprachgewandt, Lesetest 2","LVZH","2. Kl.","f*",17.7,null,{"$f":"G179*H179","v":0}]

{"sheet":"Mathematik","index":4,"n_rows":145,"n_cols":9,"rows_kept":145,"cut":false,"hidden":false,"merged":[[2,4,2,7],[3,4,3,7],[1,4,1,7]]}
[null,"Kundennummer",{"$f":"'Angaben zur Bestellung'!$B$11","v":0},null,null,null,"Datum:",{"$f":"'Angaben zur Bestellung'!B20","v":"2018-03-26"},"Mathematik"]
[null,"Vorname & Name:",{"$f":"'Angaben zur Bestellung'!B13","v":0},"PlZ , Ort",{"$f":"'Angaben zur Bestellung'!B16","v":0},null,null,null,{"$f":"SUM(I7:I999)","v":0}]
[null,"Schulhaus & Stufe:",{"$f":"'Angaben zur Bestellung'!B14","v":0},"Telefon",{"$f":"'Angaben zur Bestellung'!B17","v":0},null,null,null,"Gesamttotal"]
[null,"Strasse:",{"$f":"'Angaben zur Bestellung'!B15","v":0},"eMail:",{"$f":"'Angaben zur Bestellung'!B18","v":0},null,null,null,{"$f":"Bestellschein!$I$4","v":0}]
[]
["Kompetenzbereich","TNR","Artikeltitel","Verlag","Stufe","KTG","VKP","Menge","Betrag"]
["Mathematik 1","P20.6600","Schweizer Zahlenbuch 1, Schulbuch","Klett",null,"o",26,null,{"$f":"G7*H7","v":0}]
["Mathematik 1","P20.6601","Schweizer Zahlenbuch 1, Arbeitsheft","Klett",null,"o",12.4,null,{"$f":"G8*H8","v":0}]
["Mathematik 1","P20.6602","Schweizer Zahlenbuch 1, Lösungen","Klett",null,"o",24.7,null,0]
["Mathematik 1","P20.6603","Schweizer Zahlenbuch 1, Begleitband","Klett",null,"o",67,null,0]
["Mathematik 1","P20.6604","Schweizer Zahlenbuch 1, Arbeitsmittel sep.","Klett",null,"f",24.7,null,0]
[]
["Mathematik 1","P20.6400","Mathematik 1, Set mit 4 Heften","LMVZ",null,"f",16.7,null,0]
["Mathematik 1","P20.6401","Mathematik 1, Handbuch","LMVZ",null,"f",80.099999999999994,null,0]
["Mathematik 1","P20.6402","Mathematik 1, Lösungen","LMVZ",null,"f",27.1,null,0]
["Mathematik 1","P20.6403","Mathematik 1, Wendepunkte","LMVZ",null,"f",38.950000000000003,null,0]
["Mathematik 1","P20.6404","Mathematik 1, Holzwürfel/Soma Würfel","LMVZ",null,"f",24.95,null,0]
["Mathematik 1","P20.6405","Mathematik 1, Münzen und Noten","LMVZ",null,"f",16.2,null,0]
["Mathematik 1","P20.6406","Mathematik 1, Zahlenkarten","LMVZ",null,"f",16.100000000000001,null,0]
["Mathematik 1","P20.6407","Mathematik 1, Zahlenband","LMVZ",null,"f",6.4,null,0]
["Mathematik 1","P20.6408","Mathematik 1, Hundertertafel","LMVZ",null,"f",8.6999999999999993,null,0]
["Mathematik 1","P20.6409","Mathematik 1, CR Arbeitsblätter","LMVZ",null,"f",25,null,0]
["Mathematik 1","P20.6410","Mathematik 1, CR Einzellizenz Private","LMVZ",null,"f",15.6,null,0]
[]
["Mathematik 1","P20.6500","Mathematik einundzwanzig 1, Schulbuch","Schubi",null,"f",24.9,null,{"$f":"G25*H25","v":0}]
["Mathematik 1","P20.6501","Mathematik einundzwanzig 1, Arbeitsheft 1+2","Schubi",null,"f",13.5,null,0]
["Mathematik 1","P20.6502","Mathematik einundzwanzig 1, Begleitband","Schubi",null,"f",49.9,null,0]
["Mathematik 1","P20.6503","Mathematik einundzwanzig 1, Tests und Vorlagen","Schubi",null,"f",29.9,null,0]
[]
["Mathematik 1","P20.6344","Einstern 1, Schuber mit 5 Themenheften (neu)","Cornelsen",null,"f",45.5,null,0]
[]
["Mathematik 1+2","P20.6800","Mathwelt 1, 2 Themenbücher","Schulverlag+",null,"f",59,null,{"$f":"G32*H32","v":0}]
["Mathematik 1+2","P20.6801","Mathwelt 1, 6 Arbeitshefte","Schulverlag+",null,"f",59,null,0]
["Mathematik 1+2","P20.6802","Mathwelt 1, Kommentar","Schulverlag+",null,"f",189,null,0]
["Mathematik 1+2","P20.6803","Mathwelt 1, Trainings-Spiele","Schulverlag+",null,"f",189,null,0]
["Mathematik 1+2","P20.6804","Mathwelt 1, Würfelset","Schulverlag+",null,"f",9.8000000000000007,null,0]
["Mathematik 1+2","P20.6805","Mathwelt 1, Blitz-Blick","Schulverlag+",null,"f",28,null,0]
["Mathematik 1+2","P20.6806","Mathwelt 1, Posterset","Schulverlag+",null,"f",39,null,0]
[]
["Mathematik 2","P21.6600","Schweizer Zahlenbuch 2, Schulbuch","Klett",null,"o",30,null,0]
["Mathematik 2","P21.6601","Schweizer Zahlenbuch 2, Arbeitsheft","Klett",null,"o",12.4,null,0]
["Mathematik 2","P21.6602","Schweizer Zahlenbuch 2, Lösungen","Klett",null,"o",24.7,null,0]
["Mathematik 2","P21.6603","Schweizer Zahlenbuch 2, Begleitband","Klett",null,"o",67,null,0]
["Mathematik 2","P21.6604","Schweizer Zahlenbuch 2, Arbeitsmittel sep.","Klett",null,"f",24.7,null,0]
[]
["Mathematik 2","P21.6400","Mathematik 2, Themenbuch","LMVZ",null,"f",16.7,null,0]
["Mathematik 2","P21.6401","Mathematik 2, Set mit 4 Heften","LMVZ",null,"f",16.7,null,0]
["Mathematik 2","P21.6402","Mathematik 2, Handbuch","LMVZ",null,"f",80.099999999999994,null,0]
["Mathematik 2","P21.6403","Mathematik 2, Lösungen","LMVZ",null,"f",27.1,null,0]
["Mathematik 2","P21.6404","Mathematik 2, CR Arbeitsblätter","LMVZ",null,"f",25,null,0]
["Mathematik 2","P21.6405","Mathematik 2, CR Einzellizenz Private","LMVZ",null,"f",15.6,null,0]
[]
["Mathematik 2","P21.6500","Mathematik einundzwanzig 2, Schulbuch","Schubi",null,"f",24.9,null,{"$f":"G53*H53","v":0}]
["Mathematik 2","P21.6501","Mathematik einundzwanzig 2, Arbeitsheft","Schubi",null,"f",13.5,null,0]
["Mathematik 2","P21.6502","Mathematik einundzwanzig 2, Begleitband","Schubi",null,"f",49.9,null,0]
["Mathematik 2","P21.6503","Mathematik einundzwanzig 2, Tests","Schubi",null,"f",29.9,null,0]
[]
["Mathematik 2","P21.6344","Einstern 2, Schuber mit 5 Themenheften (neu)","Cornelsen",null,"f",45.5,null,0]
[]
["Übungs- und Arbeitsmaterial zum Schweizer Zahlenbuch","P26.6600","Blitzrechenkartei 1","Klett",null,"f",32.1,null,0]
["Übungs- und Arbeitsmaterial zum Schweizer Zahlenbuch","P26.6601","Blitzrechenkartei 2","Klett",null,"f",32.1,null,0]
["Übungs- und Arbeitsmaterial zum Schweizer Zahlenbuch","P26.6604","Karteikartenbox leer (4er Pack)","Klett",null,"f",15.9,null,0]
["Übungs- und Arbeitsmaterial zum Schweizer Zahlenbuch","P27.8023","Blitzrechnen 1/2, CR","Klett","1.-2. Kl.","f",43.1,null,0]
["Übungs- und Arbeitsmaterial zum Schweizer Zahlenbuch","P26.6610","Fördern und Diagnose mit dem Blitzrechenkurs","Klett","1.-4.","f",16.2,null,0]
["Übungs- und Arbeitsmaterial zum Schweizer Zahlenbuch","P26.6700","Sachrechnen im Kopf 1/2, Kartei Grössen","Klett",null,"f",38.9,null,0]
[]
["Übungs- und Arbeitsmaterial zum Schweizer Zahlenbuch","P26.6710","Einspluseins-Tafel","Klett","1.","f",17.7,null,0]
["Übungs- und Arbeitsmaterial zum Schweizer Zahlenbuch","P26.6711","Einmaleins-Tafel","Klett","2.","f",17.7,null,0]
["Übungs- und Arbeitsmaterial zum Schweizer Zahlenbuch","P26.6720","Einmaleins-Plan","Klett",null,"f",17.7,null,0]
["Übungs- und Arbeitsmaterial zum Schweizer Zahlenbuch","P26.6723","Kartenspiele zum Einmaleins","Klett",null,"f",14.7,null,0]
[]
["Übungs- und Arbeitsmaterial zum Schweizer Zahlenbuch","K03.3015","Das kleine Denkspielbuch","Klett","KG/US","f",42.4,null,0]
["Übungs- und Arbeitsmaterial zum Schweizer Zahlenbuch","K03.3016","Das kleine Zahlenbuch 1","Klett","KG/US","f",42.4,null,0]
["Übungs- und Arbeitsmaterial zum Schweizer Zahlenbuch","K03.3017","Das kleine Zahlenbuch 2","Klett","KG/US","f",42.4,null,0]
["Übungs- und Arbeitsmaterial zum Schweizer Zahlenbuch","K03.3018","Das kleine Formenbuch 1","Klett","KG/US","f",42.4,null,0]
["Übungs- und Arbeitsmaterial zum Schweizer Zahlenbuch","K03.3019","Das kleine Formenbuch 2","Klett","KG/US","f",42.4,null,0]
[]
["Übungs- und Arbeitsmaterial zum Schweizer Zahlenbuch","P26.6724","Probieren und Kombinieren 1, Igelaufgaben","Klett","1.","f",7.8,null,0]
["Übungs- und Arbeitsmaterial zum Schweizer Zahlenbuch","P26.6725","Probieren und Kombinieren 2, Igelaufgaben","Klett","2.","f",7.8,null,0]
["Übungs- und Arbeitsmaterial zum Schweizer Zahlenbuch","P26.6728","Verstehen und Trainieren 1, Grundaufgaben","Klett","1.","f",7.8,null,0]
["Übungs- und Arbeitsmaterial zum Schweizer Zahlenbuch","P26.6729","Verstehen und Trainieren 2, Grundaufgaben","Klett","2.","f",7.8,null,{"$f":"G81*H81","v":0}]
["Übungs- und Arbeitsmaterial zum Schweizer Zahlenbuch","P26.6732","Vernetzen und Automatisieren 1","Klett","1.","f",5.9,null,0]
["Übungs- und Arbeitsmaterial zum Schweizer Zahlenbuch","P26.6733","Vernetzen und Automatisieren 2","Klett","2.","f",5.9,null,0]
[]
["Übungs- und Arbeitsmaterial zum Schweizer Zahlenbuch","P26.6740","Sieben auf einen Blick, Kartenspiele","Klett","1./2.","f",21.3,null,0]
["Übungs- und Arbeitsmaterial zum Schweizer Zahlenbuch","P26.6741","Kartenspiele zum Einspluseins","Klett","1./2.","f",15,null,0]
["Übungs- und Arbeitsmaterial zum Schweizer Zahlenbuch","P26.6742","Denkschule 1/2","Klett","1./2.","f",35.1,null,0]
[]
["Übungs- und Arbeitsmaterial zum Schweizer Zahlenbuch","P26.6790","Potz Klotz (raumgeometrisches Spiel)","Klett","1./2.","f",18.3,null,0]
["Übungs- und Arbeitsmaterial zum Schweizer Zahlenbuch","P26.6791","Der Hunderterrahmen","Klett","1./2.","f",101,null,0]
["Übungs- und Arbeitsmaterial zum Schweizer Zahlenbuch","P26.6792","Zauberdreieck","Klett","1.-4.","f",49.8,null,0]
["Übungs- und Arbeitsmaterial zum Schweizer Zahlenbuch","P26.6793","Zahlenmaurer (Add. + Sub. bis 20)","Klett","1.","f",34.4,null,0]
["Übungs- und Arbeitsmaterial zum Schweizer Zahlenbuch","P26.6802","Wendekarten (10er Paket)","Klett",null,"f",17.7,null,0]
["Übungs- und Arbeitsmaterial zum Schweizer Zahlenbuch","P26.6803","Wendekarten, Lehrerausgabe magnetisch","Klett",null,"f",90.3,null,0]
["Übungs- und Arbeitsmaterial zum Schweizer Zahlenbuch","P26.6804","Wendeplättchen (1500 St.)","Klett",null,"f",12.6,null,0]
["Übungs- und Arbeitsmaterial zum Schweizer Zahlenbuch","P26.6805","Wendeplättchen, Lehrerausgabe magn.","Klett",null,"f",90.3,null,0]
["Übungs- und Arbeitsmaterial zum Schweizer Zahlenbuch","P26.6807","Plättchen & Co. Digital, interakt. Tafelbilder","Klett","1.-4.","f",38.299999999999997,null,0]
[]
["Übungs- und Arbeitsmaterial zum Schweizer Zahlenbuch","P26.6810","Spiegeln mit dem Spiegel","Klett","ab 1.","f",23.9,null,0]
["Übungs- und Arbeitsmaterial zum Schweizer Zahlenbuch","P26.6812","Spiegel (10 Handspiegel)","Klett",null,"f",23.9,null,0]
[]
["Mathematik 1 und 2 Arbeitsmaterial","P27.8050","mini-LÜK Lösungsgerät","SBZ",null,"f",23.5,null,0]
["Mathematik 1 und 2 Arbeitsmaterial","P27.8051","LÜK Lösungsgerät","SBZ",null,"f",25.9,null,0]
["Mathematik 1 und 2 Arbeitsmaterial","P27.8052","Profax Kontrollgerät","Profax",null,"f",39.799999999999997,null,0]
["Mathematik 1 und 2 Arbeitsmaterial","P27.8061","Abaco 10 tricolor (rot-weiss)","Schubi","US","f",14.95,null,0]
["Mathematik 1 und 2 Arbeitsmaterial","P27.8060","Abaco 20 tricolor (rot-weiss)","Schubi","US","f",24.95,null,0]
["Mathematik 1 und 2 Arbeitsmaterial","P27.8053","Abaco 20, Modell A (rot-weiss)","Schubi",null,"f",19.95,null,0]
["Mathematik 1 und 2 Arbeitsmaterial","P27.8062","Abaco 20, mit Zahlen (rot-weiss)","Schubi",null,"f",19.95,null,0]
["Mathematik 1 und 2 Arbeitsmaterial","P27.8054","Abaco 100, Modell A (ohne Zahlen)","Schubi",null,"f",59.95,null,0]
["Mathematik 1 und 2 Arbeitsmaterial","P27.8057","Abaco 100, Modell A (mit Zahlen)","Schubi",null,"f",59.95,null,0]
["Mathematik 1 und 2 Arbeitsmaterial","P27.8063","Abaco 100, Tricolor (rot-weiss)","Schubi",null,"f",64.95,null,0]
["Mathematik 1 und 2 Arbeitsmaterial","P27.8059","Abaco 1x1","Schubi","US","f",59.95,null,0]
["Mathematik 1 und 2 Arbeitsmaterial","P27.8065","Ali singed Mathi, Liederheft mit CD","LMVZ","KG-2. Kl.","f",34.4,null,0]
[]
["Mathematik 1 und 2 Arbeitsmaterial","P24.1716","Spielwürfel-Sortiment (10 Stück)    ","Schubi",null,"f",17.899999999999999,null,0]
["Mathematik 1 und 2 Arbeitsmaterial","P27.8055","Augenwürfel (10 Stück)","Schubi",null,"f",11.9,null,0]
["Mathematik 1 und 2 Arbeitsmaterial","P27.8056","Schüler-Lernuhr","Schubi",null,"f",10.95,null,0]
["Mathematik 1 und 2 Arbeitsmaterial","P27.8071","Grosse Lernuhr (27 cm)","Schubi",null,"f",44.95,null,0]
["Mathematik 1 und 2 Arbeitsmaterial","P27.8072","Tafel-Uhr (29x36 cm)","Schubi",null,"f",21.95,null,0]
["Mathematik 1 und 2 Arbeitsmaterial","P27.8073","Rechengeld CHF","Schubi",null,"f",8.9499999999999993,null,0]
["Mathematik 1 und 2 Arbeitsmaterial","P27.8074","Magnetisches Wandtafelgeld CHF","Schubi",null,"f",74.95,null,0]
["Mathematik 1 und 2 Arbeitsmaterial","P27.8066","Time Timer, gross","active solutions",null,"f",81,null,0]
["Mathematik 1 und 2 Arbeitsmaterial","P27.8067","Time Timer, mittel","active solutions",null,"f",54,null,0]
["Mathematik 1 und 2 Arbeitsmaterial","P27.8068","Time Timer, klein","active solutions",null,"f",48,null,0]
["Mathematik 1 und 2 Arbeitsmaterial","P27.8069","Time Timer, Plus","active solutions",null,"f",58,null,0]
[]
["Mathematik 1 und 2 Arbeitsmaterial","K03.3014","bauen und begreifen DUPLO Grundbauset","Educatec","KG/US","f",130,null,0]
["Mathematik 1 und 2 Arbeitsmaterial","K03.3020","\"Ein\"-Stein, Handbuch und Arbeitsmappe","Walker Luzia","KG/US","f",70,null,0]
[]
["Mathematik 1 und 2 Integrierte Förderung","P29.3303","Stark in Mathematik, Buch","SBZ","US","f",38.9,null,0]
["Mathematik 1 und 2 Integrierte Förderung","P29.3304","Stark in Mathematik, AH Eingangsstufe","SBZ","US","f",19.899999999999999,null,0]
["Mathematik 1 und 2 Integrierte Förderung","P29.3305","Stark in Mathematik, AH U1","SBZ","US","f",7.9,null,0]
["Mathematik 1 und 2 Integrierte Förderung","P29.3306","Stark in Mathematik, AH U2","SBZ","US","f",7.9,null,0]
["Mathematik 1 und 2 Integrierte Förderung","P29.3307","Stark in Mathematik, AH U3","SBZ","US","f",7.9,null,0]
["Mathematik 1 und 2 Integrierte Förderung","P29.3308","Stark in Mathematik, AH U4","SBZ","US","f",7.9,null,0]
["Mathematik 1 und 2 Integrierte Förderung","P29.3309","Stark in Mathematik, Kommentar","SBZ","US","f",31.5,null,0]
[]
["Mathematik 1 und 2 Integrierte Förderung","P29.3325","Der kleine Einstern, Math. Grunderfahrungen","Cornelsen CH",null,"f",10,null,0]
[]
["Mathematik 1 und 2 Integrierte Förderung","P29.3400","Heilpäd. Komm. Schweiz. Zahlenbuch 1","Klett",null,"f",45,null,{"$f":"G140*H140","v":0}]
["Mathematik 1 und 2 Integrierte Förderung","P29.3401","Heilpäd. Komm. Schweiz. Zahlenbuch 2","Klett",null,"f",45,null,0]
[]
["Mathematik 1 und 2 Integrierte Förderung","P29.3500","Lernumgebungen für Rechenschwache bis H.","Klett","1.-6. Kl.","f",54,null,0]
["Mathematik 1 und 2 Integrierte Förderung","P29.3501","Kleine Mengen auf einen Blick, Kartenspiel","VadR","US","f",18.7,null,0]
["Mathematik 1 und 2 Integrierte Förderung","P29.3502","Mengen und Zahlen bis 10, Kartenspiel","VadR","US","f",18.7,null,0]

{"sheet":"Natur,Mensch,Gesellschaft","index":5,"n_rows":59,"n_cols":9,"rows_kept":59,"cut":false,"hidden":false,"merged":[[2,4,2,7],[3,4,3,7],[1,4,1,7]]}
[null,"Kundennummer",{"$f":"'Angaben zur Bestellung'!$B$11","v":0},null,null,null,"Datum:",{"$f":"'Angaben zur Bestellung'!B20","v":"2018-03-26"},"NMG"]
[null,"Vorname & Name:",{"$f":"'Angaben zur Bestellung'!B13","v":0},"PlZ , Ort",{"$f":"'Angaben zur Bestellung'!B16","v":0},null,null,null,{"$f":"SUM(I7:I864)","v":0}]
[null,"Schulhaus & Stufe:",{"$f":"'Angaben zur Bestellung'!B14","v":0},"Telefon",{"$f":"'Angaben zur Bestellung'!B17","v":0},null,null,null,"Gesamttotal"]
[null,"Strasse:",{"$f":"'Angaben zur Bestellung'!B15","v":0},"eMail:",{"$f":"'Angaben zur Bestellung'!B18","v":0},null,null,null,{"$f":"Bestellschein!$I$4","v":0}]
[]
["Kompetenzbereich","TNR","Artikeltitel","Verlag","Stufe","KTG","VKP","Menge","Betrag"]
["Natur, Mensch Gesellschaft","P30.5065","Panorama, Raum und Zeit","Schulverlag+","ab 2. Kl.","f",17.2,null,{"$f":"G7*H7","v":0}]
["Natur, Mensch Gesellschaft","P30.5066","Panorama, Klassenmaterial","Schulverlag+","ab 2. Kl.","f",98,null,{"$f":"G8*H8","v":0}]
["Natur, Mensch Gesellschaft","P30.5067","Panorama, Hinweise","Schulverlag+","ab 2. Kl.","f",25.5,null,0]
[]
["Natur, Mensch Gesellschaft","P36.3000","Urner Sagen, Buch mit CD","Quadrat",null,"f",54,null,0]
["Natur, Mensch Gesellschaft","P36.3001","Das Eisklumpenungeheuer, Buch","Gisler",null,"f",12,null,0]
["Natur, Mensch Gesellschaft","P36.3002","Dr achtchepfig Stier, CD","LVUR",null,"f",12,null,0]
[]
["Natur, Mensch Gesellschaft","P39.7817","Feldbuch NaturSpur","Schulverlag+","1.-4. Kl.","f",19.3,null,0]
["Natur, Mensch Gesellschaft","P37.1600","Erlebnisbilder Lebensräume NaturSpur","Schulverlag+","1.-4. Kl.","f",48,null,0]
["Natur, Mensch Gesellschaft","P39.3100","Lernwelten, Ausbildung fachdidaktische Grundlagen","Schulverlag+","KG-6. Kl.","f",24,null,0]
[]
["Natur, Mensch Gesellschaft","P37.1999","Zebra 1/2, Paket (8 Hefte)","Klett","1.-2. Kl.","f",44.3,null,0]
["Natur, Mensch Gesellschaft","P37.2008","Zebra 1/2, Kommentar mit CR und CD","Klett","1.-2. Kl.","f",31.1,null,0]
["Natur, Mensch Gesellschaft","P37.2009","Zebra 1/2, Kopiervorlagen mit CR","Klett","1.-2. Kl.","f",85.8,null,0]
[]
["Natur, Mensch Gesellschaft","P37.2500","Experimentierkartei 1-4, Schüler","Klett","1.-4. Kl.","f",18.600000000000001,null,0]
["Natur, Mensch Gesellschaft","P37.2501","Experimentierkartei 1-4, Lehrperson","Klett","1.-4. Kl.","f",20.7,null,0]
[]
["Natur, Mensch Gesellschaft","P39.3116","NaTech 1/2, Themenbuch","Schulverlag+","1./2. Kl.","f",25.9,null,0]
["Natur, Mensch Gesellschaft","P39.3117","NaTech 1/2, Forschungsheft","Schulverlag+","1./2. Kl.","f",15.9,null,0]
["Natur, Mensch Gesellschaft","P39.3118","NaTech 1/2, Kommentar","Schulverlag+","1./2. Kl.","f",179,null,0]
[]
["Natur, Mensch Gesellschaft","P38.3140","ich du wir - Sexualität (TZT-Methode)","Schulverlag+","1.-9. Kl.","f",29,null,0]
[]
["Natur, Mensch Gesellschaft","P39.3129","Wir helfen zu viel","Klett","1.-9. Kl.","f",44.9,null,0]
["Natur, Mensch Gesellschaft","P39.3141","Denkbilder - Mit Kindern das Lernen reflektieren","Schulverlag+","1.-6. Kl.","f",38,null,0]
["Natur, Mensch Gesellschaft","P39.3134","10x10 Lernimpulse","Erle","1. Kl.","f",19,null,0]
[]
["Natur, Mensch Gesellschaft","P40.1000","Ethik und Religionen 1/2, Arbeitsheft","LVLU","1./2. Kl.","f",9.8000000000000007,null,0]
["Natur, Mensch Gesellschaft","P40.1001","Ethik und Religionen 1/2, Kommentar","LVLU","1./2. Kl.","f",23,null,0]
[]
["Natur, Mensch Gesellschaft","P39.3101","Konfetti. Ich und die Gemeinschaft","Schulverlag+","ab 1. Kl.","f",15.1,null,0]
["Natur, Mensch Gesellschaft","P39.3102","Konfetti, Klassenmaterial","Schulverlag+","ab 1. Kl.","f",99.9,null,0]
["Natur, Mensch Gesellschaft","P39.3103","Konfetti, Hinweise","Schulverlag+","ab 1. Kl.","f",23.4,null,0]
[]
["Natur, Mensch Gesellschaft","P40.3200","WeltBilden, Arbeitsheft Eingangsstufe","Schulverlag+","US","f",8.5,null,0]
["Natur, Mensch Gesellschaft","P40.3202","WeltBilden, Materialien Primarstufe","Schulverlag+","PS","f",29.6,null,0]
["Natur, Mensch Gesellschaft","P40.3203","WeltBilden, Grundlagen CR","Schulverlag+","PS/OS","f",59.2,null,0]
[]
["Natur, Mensch Gesellschaft","P40.3250","HimmelsZeichen, Bildermappe","Schulverlag+","KG-3. Kl.","f",134,null,0]
["Natur, Mensch Gesellschaft","P40.3251","HimmelsZeichen, Klassenmaterial","Schulverlag+","KG-3. Kl.","f",120,null,0]
["Natur, Mensch Gesellschaft","P40.3252","HimmelsZeichen, Hinweise","Schulverlag+","KG-3. Kl.","f",34,null,0]
[]
["Natur, Mensch Gesellschaft","P40.5000","Blickpunkt 1, Schülerbuch","LMVZ","1.-3. Kl.","f",25,null,0]
["Natur, Mensch Gesellschaft","P40.5001","Blickpunkt 1, Kommentar","LMVZ","1.-3. Kl.","f",46.8,null,0]
["Natur, Mensch Gesellschaft","P40.5002","Blickpunkt 1, Klassenmaterial","LMVZ","1.-3. Kl.","f",124.8,null,0]
["Natur, Mensch Gesellschaft","P40.5003","Blickpunkt 1, Poster","LMVZ","1.-3. Kl.","f",19.8,null,0]
["Natur, Mensch Gesellschaft","P40.5004","Blickpunkt 1, Folien","LMVZ","1.-3. Kl.","f",27.1,null,0]
[]
["Natur, Mensch Gesellschaft","P40.6001","Vom Streiten und Vertragen, Print + CD","Lernbiene","2.-4. Kl.","f",35.5,null,0]
["Natur, Mensch Gesellschaft","P40.6002","Ethik an Stationen 1/2","Auer","1./2. Kl.","f",30.9,null,0]
["Natur, Mensch Gesellschaft","P40.6005","Ethik 2. Klasse","Persen","2. Kl.","f",29.5,null,0]

{"sheet":"Gestalten","index":6,"n_rows":23,"n_cols":9,"rows_kept":23,"cut":false,"hidden":false,"merged":[[1,4,1,7],[2,4,2,7],[3,4,3,7]]}
[null,"Kundennummer",{"$f":"'Angaben zur Bestellung'!$B$11","v":0},null,null,null,"Datum:",{"$f":"'Angaben zur Bestellung'!B20","v":"2018-03-26"},"Gestalten"]
[null,"Vorname & Name:",{"$f":"'Angaben zur Bestellung'!B13","v":0},"PlZ , Ort",{"$f":"'Angaben zur Bestellung'!B16","v":0},null,null,null,{"$f":"SUM(I7:I997)","v":0}]
[null,"Schulhaus & Stufe:",{"$f":"'Angaben zur Bestellung'!B14","v":0},"Telefon",{"$f":"'Angaben zur Bestellung'!B17","v":0},null,null,null,"Gesamttotal"]
[null,"Strasse:",{"$f":"'Angaben zur Bestellung'!B15","v":0},"eMail:",{"$f":"'Angaben zur Bestellung'!B18","v":0},null,null,null,{"$f":"Bestellschein!$I$4","v":0}]
[]
["Kompetenzbereich","TNR","Artikeltitel","Verlag","Stufe","KTG","VKP","Menge","Betrag"]
["Textiles und Technisches Gestalten","H01.3126","Fadenflip 1 ","LVLU",null,"o",28.5,null,{"$f":"G7*H7","v":0}]
["Textiles und Technisches Gestalten","H01.3127","Fadenflip 2","LVLU",null,"o",28.5,null,{"$f":"G8*H8","v":0}]
["Textiles und Technisches Gestalten","H01.3128","Fadenflip 1+2, Kommentar mit CR","LVLU",null,"o",108,null,0]
["Textiles und Technisches Gestalten","H01.2401","Verflixt und zugenäht, Ordner (neu)","LVSG","PS","f",17.5,null,0]
["Textiles und Technisches Gestalten","H01.2410","Verflixt und zugenäht, Kommentar (neu)","LVSG","PS","f",62,null,0]
[]
["Textiles und Technisches Gestalten","P56.9210","Werkweiser 1, Handbuch mit CR","Schulverlag+","KG-2. Kl.","o",77.5,null,0]
["Textiles und Technisches Gestalten","P56.9215","Wertlos - Wertvoll","Schulverlag+","1.-9. Kl.","f",51,null,0]
["Textiles und Technisches Gestalten","P56.9221","formSachen - Tonarbeit im Unterricht","Schulverlag+","KG-9. Kl.","f",54,null,0]
["Textiles und Technisches Gestalten","P56.9223","Himmelhoch & Türkisblau","Schulverlag+","KG-3. Kl.","f",52,null,0]
["Textiles und Technisches Gestalten","P56.9224","Schere Stift Papier","Schulverlag+","1.-4.","f",19,null,0]
[]
["Bildnerisches Gestalten","P57.2860","10x10 Kunstbegegnungen","Erle",null,"f",48.8,null,0]
["Bildnerisches Gestalten","P57.9212","bildÖffner, Grundlagen","Schulverlag+","KG-9. Kl.","f*",92.6,null,0]
["Bildnerisches Gestalten","P57.9211","bildÖffner, Poster 16x Kunst für die Schule","Schulverlag+","KG-9. Kl.","f*",89,null,0]
["Bildnerisches Gestalten","P57.9213","bildÖffner 1","Schulverlag+","KG-2. Kl.","f",78,null,0]
["Bildnerisches Gestalten","P57.9215","Zeichnen mit der Schere","Schulverlag+","KG-4. Kl.","f",40.1,null,0]

{"sheet":"Musik","index":7,"n_rows":37,"n_cols":9,"rows_kept":37,"cut":false,"hidden":false,"merged":[[2,4,2,7],[3,4,3,7],[1,4,1,7]]}
[null,"Kundennummer",{"$f":"'Angaben zur Bestellung'!$B$11","v":0},null,null,null,"Datum:",{"$f":"'Angaben zur Bestellung'!B20","v":"2018-03-26"},"Musik"]
[null,"Vorname & Name:",{"$f":"'Angaben zur Bestellung'!B13","v":0},"PlZ , Ort",{"$f":"'Angaben zur Bestellung'!B16","v":0},null,null,null,{"$f":"SUM(I7:I999)","v":0}]
[null,"Schulhaus & Stufe:",{"$f":"'Angaben zur Bestellung'!B14","v":0},"Telefon",{"$f":"'Angaben zur Bestellung'!B17","v":0},null,null,null,"Gesamttotal"]
[null,"Strasse:",{"$f":"'Angaben zur Bestellung'!B15","v":0},"eMail:",{"$f":"'Angaben zur Bestellung'!B18","v":0},null,null,null,{"$f":"Bestellschein!$I$4","v":0}]
[]
["Kompetenzbereich","TNR","Artikeltitel","Verlag","Stufe","KTG","VKP","Menge","Betrag"]
["Musik","P50.1600","Kreschendo 1/2, Arbeitsheft","Comenius",null,"f",12,null,{"$f":"G7*H7","v":0}]
["Musik","P50.1601","Kreschendo 1/2, Begleitband","Comenius",null,"f",48,null,{"$f":"G8*H8","v":0}]
["Musik","P50.1602","Kreschendo 1/2, Audio-CD","Comenius",null,"f",39,null,0]
[]
["Musik","P50.1720","MusAik 1, Arbeitsheft","LVSG","KG/US","f",19,null,0]
["Musik","P50.1721","MusAik 1, Kommentar","LVSG","KG/US","f",89,null,0]
["Musik","P50.1722","MusAik 1, Audio CD's","LVSG","KG/US","f",29,null,0]
["Musik","P50.1723","MusAik 1, DVD","LVSG","KG/US","f",74,null,0]
["Musik","P50.1728","MusAik 1+2, Rhythmuskarten ","LVSG","KG/PS","f",8.5,null,0]
[]
["Musik","P50.1750","eifach singe, Liederbuch","LMVZ","KG/US","f",25.2,null,0]
["Musik","P50.1751","eifach singe, Lieder-CD","LMVZ","KG/US","f*",25.9,null,0]
["Musik","P50.1752","eifach singe, Playback-CD","LMVZ","KG/US","f*",25.9,null,0]
[]
["Musik","P50.1491","Sing mit, Schülerbuch (neu)","LVSG","2.-3. Kl.","f",25.5,null,0]
["Musik","P50.1492","Sing mit, Kommentar (neu)","LVSG","2.-3. Kl.","f*",65,null,0]
["Musik","P50.1493","Sing mit, 6 Playback CD's (neu)","LVSG","2.-3. Kl.","f*",78,null,0]
[]
["Musik","P50.1738","Salü, Liedsammlung","LVLU","1.-3. Kl.","f",19.5,null,0]
["Musik","P50.1497","Salü, Kommentar","LVLU","1.-3. Kl.","f",42,null,0]
[]
["Musik","P50.1515","Sim Sala Sing, Liederbuch","Helbling","1.-6. Kl.","f",24.8,null,0]
["Musik","P50.1516","Sim Sala Sing, 4 CD's Originalaufnahmen","Helbling","1.-6. Kl.","f",93.8,null,0]
["Musik","P50.1517","Sim Sala Sing, 5 CD's Playbacks","Helbling","1.-6. Kl.","f",118.8,null,0]
["Musik","P50.1518","Sim Sala Sing, CR","Helbling","1.-6. Kl.","f",56.8,null,0]
[]
["Musik","K01.1800","Tipolino 1, Schülerbuch","Helbling","KG-2.","f",28.9,null,0]
["Musik","K01.1801","Tipolino 1, Handbuch","Helbling","KG-2.","f",48,null,0]
["Musik","K01.1802","Tipolino 1, Audio-CD's","Helbling","KG-2.","f",130,null,0]
["Musik","K01.1803","Tipolino 1, Paket 1 (Schülerbuch+Handbuch)","Helbling","KG-2.","f",69,null,0]
["Musik","K01.1804","Tipolino 1, Paket 2 (Schülerbuch+Handbuch+CD's)","Helbling","KG-2.","f",175,null,0]

{"sheet":"Bewegung und Sport","index":8,"n_rows":51,"n_cols":9,"rows_kept":51,"cut":false,"hidden":false,"merged":[[2,4,2,7],[3,4,3,7],[1,4,1,7]]}
[null,"Kundennummer",{"$f":"'Angaben zur Bestellung'!$B$11","v":0},null,null,null,"Datum:",{"$f":"'Angaben zur Bestellung'!B20","v":"2018-03-26"},"B. & Sport"]
[null,"Vorname & Name:",{"$f":"'Angaben zur Bestellung'!B13","v":0},"PlZ , Ort",{"$f":"'Angaben zur Bestellung'!B16","v":0},null,null,null,{"$f":"SUM(I7:I902)","v":0}]
[null,"Schulhaus & Stufe:",{"$f":"'Angaben zur Bestellung'!B14","v":0},"Telefon",{"$f":"'Angaben zur Bestellung'!B17","v":0},null,null,null,"Gesamttotal"]
[null,"Strasse:",{"$f":"'Angaben zur Bestellung'!B15","v":0},"eMail:",{"$f":"'Angaben zur Bestellung'!B18","v":0},null,null,null,{"$f":"Bestellschein!$I$4","v":0}]
[]
["Kompetenzbereich","TNR","Artikeltitel","Verlag","Stufe","KTG","VKP","Menge","Betrag"]
["Bewegung und Sport","P60.2871","Sporterziehung 3, Zusatzbroschüre","BBL",null,"f",15,null,{"$f":"G7*H7","v":0}]
["Bewegung und Sport","P60.2882","Sportheft 1.-3. Schuljahr","LMVZ",null,"f",8.5,null,{"$f":"G8*H8","v":0}]
[]
["Bewegung und Sport","P60.2879","Musik bewegt, Bewegungsspiele CD+Karten","BASPO","KG/US","f",24,null,0]
["Bewegung und Sport","P60.1650","Schwimmwelt","Schulverlag+",null,"f",60.4,null,0]
["Bewegung und Sport","P60.1651","Schwimmwelt, DVD","Schwimmwelt",null,"f",59,null,0]
["Bewegung und Sport","P60.1652","100 Lektionen für den Schwimmunterricht","Schwimmheft","KG/PS","f",48.5,null,0]
["Bewegung und Sport","P60.1653","Testheft zum Schwimmunterricht","Schwimmheft","KG/PS","f",3.9,null,0]
["Bewegung und Sport","P60.1655","60 Schwimmspiele mit Hilfsmitteln (Kartei)","VadR","1.-9.","f",31.2,null,0]
["Bewegung und Sport","P60.1600","Wassersicherheit macht Schule, Arbeitsheft 1","LVLU","1.","f",3,null,0]
["Bewegung und Sport","P60.1601","Wassersicherheit macht Schule, Begleitheft 1","LVLU","1.","f",6,null,0]
["Bewegung und Sport","P60.1602","Wassersicherheit macht Schule, Arbeitsheft 2","LVLU","2.","f",3,null,0]
["Bewegung und Sport","P60.1603","Wassersicherheit macht Schule, Begleitheft 2","LVLU","2.","f",6,null,0]
["Bewegung und Sport","P60.1618","Wassersicherheit macht Schule, Bilderbuch Milu","LVLU",null,"f",18,null,{"$f":"G20*H20","v":0}]
["Bewegung und Sport","P60.1619","Wassersicherheit macht Schule, Poster Milu","LVLU",null,"f",8,null,0]
["Bewegung und Sport","P60.1620","Wassersicherheit macht Schule, Poster Freibad","LVLU",null,"f",8,null,0]
["Bewegung und Sport","P60.1621","Wassersicherheit macht Schule, Poster Fluss","LVLU",null,"f",8,null,0]
["Bewegung und Sport","P60.1622","Wassersicherheit macht Schule, Puzzle","LVLU",null,"f",24,null,0]
["Bewegung und Sport","P60.1623","Wassersicherheit macht Schule, Memory","LVLU",null,"f",16,null,0]
[]
["Bewegung und Sport","P60.1660","Geräteturnfächer Basics","Ingold",null,"f",32,null,0]
["Bewegung und Sport","P60.1661","Geräteturnfächer Elements","Ingold",null,"f",32,null,0]
["Bewegung und Sport","P60.1663","Lernkontrolle Geräteturnen, Begleitbroschüre","Ingold",null,"f",47.5,null,0]
["Bewegung und Sport","P60.1664","Lernkontrolle Geräteturnen, Elementlisten","Ingold",null,"f",25.9,null,0]
["Bewegung und Sport","P60.1662","Sternstunden im Erlebnisturnen","Oekotopia",null,"f",49.9,null,0]
["Bewegung und Sport","P60.2900","Ballkünstler, Handbuch","LMVZ","1.-4.","f",25,null,0]
["Bewegung und Sport","P60.2901","Bewegungskünstlerin und Bewegungskünstler","bm-sportverlag","1.-4.","f",25,null,0]
["Bewegung und Sport","P60.2918","Gleiten, Rollen, Fahren","LMVZ","2.","f",12.5,null,0]
["Bewegung und Sport","P60.2919","Clownerie","LMVZ","2.","f",12.5,null,0]
[]
["Bewegung und Sport","P60.2902","Mut tut gut","Ingold","1./2.","f",53.7,null,0]
["Bewegung und Sport","P60.2904","Aufwärmen","LMVZ","1.-9.","f",25,null,0]
["Bewegung und Sport","P60.2905","Top-Spiele für den Sportunterricht 2","LMVZ","1.-4.","f",25,null,0]
["Bewegung und Sport","P60.2908","Jonglieren","LMVZ","1.-9.","f",18,null,0]
[]
["Bewegung und Sport","K02.2890","Basistests, Polysportive Grundausbildung","Baumberger","KG/US","f",15,null,0]
["Bewegung und Sport","K02.9605","Springseil (für neu eintretende Kinder)","GFUR","KG/US","o",0,null,0]
[]
["Bewegung und Sport","P60.3000","Burner Games","SBZ","1.-9.","f",21.5,null,0]
["Bewegung und Sport","P60.3001","Burner Games Reloaded","SBZ","1.-9.","f",23.9,null,0]
["Bewegung und Sport","P60.3002","Burner Games Revolution","SBZ","1.-9.","f",23.9,null,0]
["Bewegung und Sport","P60.3003","Burner Games Fantasy","SBZ","1.-9.","f",23.9,null,0]
["Bewegung und Sport","P60.3010","Spielfächer, Spielen lernen","Ingold","KG/US","f",32,null,0]
["Bewegung und Sport","P60.5000","Kompetenzbox für den Sportunterricht, Karteibox","LMVZ","KG-9.","f",55,null,0]
["Bewegung und Sport","P60.5009","Sportkarten 6-8 Jahre","LMVZ","1./2. Kl","f",36.799999999999997,null,0]

{"sheet":"Modul","index":9,"n_rows":14,"n_cols":9,"rows_kept":14,"cut":false,"hidden":false,"merged":[[2,4,2,7],[3,4,3,7],[1,4,1,7]]}
[null,"Kundennummer",{"$f":"'Angaben zur Bestellung'!$B$11","v":0},null,null,null,"Datum:",{"$f":"'Angaben zur Bestellung'!B20","v":"2018-03-26"},"Modul"]
[null,"Vorname & Name:",{"$f":"'Angaben zur Bestellung'!B13","v":0},"PlZ , Ort",{"$f":"'Angaben zur Bestellung'!B16","v":0},null,null,null,{"$f":"SUM(I7:I999)","v":0}]
[null,"Schulhaus & Stufe:",{"$f":"'Angaben zur Bestellung'!B14","v":0},"Telefon",{"$f":"'Angaben zur Bestellung'!B17","v":0},null,null,null,"Gesamttotal"]
[null,"Strasse:",{"$f":"'Angaben zur Bestellung'!B15","v":0},"eMail:",{"$f":"'Angaben zur Bestellung'!B18","v":0},null,null,null,{"$f":"Bestellschein!$I$4","v":0}]
[]
["Kompetenzbereich","TNR","Artikeltitel","Verlag","Stufe","KTG","VKP","Menge","Betrag"]
["Medien und Informatik","P90.2556","inform@ KG/US 1","LVSG",null,"f",19.600000000000001,null,{"$f":"G7*H7","v":0}]
["Medien und Informatik","P90.2557","inform@ KG/US 2","LVSG",null,"f",19.600000000000001,null,{"$f":"G8*H8","v":0}]
["Medien und Informatik","P90.2560","inform@ KG/US 3","LVSG",null,"f",19.600000000000001,null,0]
[]
["Medien und Informatik","P90.2570","Mein Computerheft 1/2, Arbeitsheft","Herdt",null,"f",15.6,null,0]
["Medien und Informatik","P90.2571","Mein Computerheft 1/2, Lehrerband","Herdt",null,"f",16.100000000000001,null,0]
[]
["Medien und Informatik","P90.3011","Ich Du Wir - Medienkompetent","Schulverlag+","1.-9.","f",29,null,0]

{"sheet":"Verschiedenes","index":10,"n_rows":81,"n_cols":9,"rows_kept":81,"cut":false,"hidden":false,"merged":[[77,1,77,2],[77,3,77,5],[78,1,78,2],[78,3,78,5],[80,0,80,8],[76,3,76,5],[73,1,73,2],[74,1,74,2],[68,3,68,5],[69,3,69,5],[72,1,72,2],[70,1,70,2],[76,1,76,2],[71,1,71,2],[68,1,68,2],[75,3,75,5],[70,3,70,5],[75,1,75,2],[74,3,74,5],[71,3,71,5],[69,1,69,2],[56,1,56,2],[57,1,57,2],[58,1,58,2],[59,1,59,2],[60,1,60,2],[1,4,1,7],[2,4,2,7],[3,4,3,7],[63,3,63,5],[64,3,64,5],[56,3,56,5],[57,3,57,5],[58,3,58,5],[59,3,59,5],[60,3,60,5],[61,3,61,5],[72,3,72,5],[73,3,73,5],[62,3,62,5],[65,3,65,5],[66,3,66,5],[67,3,67,5],[66,1,66,2],[67,1,67,2],[61,1,61,2],[62,1,62,2],[63,1,63,2],[64,1,64,2],[65,1,65,2]]}
[null,"Kundennummer",{"$f":"'Angaben zur Bestellung'!$B$11","v":0},null,null,null,"Datum:",{"$f":"'Angaben zur Bestellung'!B20","v":"2018-03-26"},"Verschied."]
[null,"Vorname & Name:",{"$f":"'Angaben zur Bestellung'!B13","v":0},"PlZ , Ort",{"$f":"'Angaben zur Bestellung'!B16","v":0},null,null,null,{"$f":"SUM(I7:I999)","v":0}]
[null,"Schulhaus & Stufe:",{"$f":"'Angaben zur Bestellung'!B14","v":0},"Telefon",{"$f":"'Angaben zur Bestellung'!B17","v":0},null,null,null,"Gesamttotal"]
[null,"Strasse:",{"$f":"'Angaben zur Bestellung'!B15","v":0},"eMail:",{"$f":"'Angaben zur Bestellung'!B18","v":0},null,null,null,{"$f":"Bestellschein!$I$4","v":0}]
[]
["Kompetenzbereich","TNR","Artikeltitel","Verlag","Stufe","KTG","VKP","Menge","Betrag"]
["Verschiedenes","K01.1760","Unterrichtsheft KG (5-Tage-Woche)","VfU",null,"f",23,null,{"$f":"G7*H7","v":0}]
["Verschiedenes","K01.2921","Kindergartenplaner, Buch","ProKiga",null,"f",28,null,{"$f":"G8*H8","v":0}]
["Verschiedenes","P90.1519","Unterrichtsheft, Ausg. Ad5s (Spiralbindung)","VfU",null,"f",27.5,null,0]
["Verschiedenes","P90.1521","Unterrichtsheft, Ausg. Ad (5-Tage-Woche)","VfU",null,"f",23,null,0]
["Verschiedenes","P90.2537","Unterrichts-Journal 18/19","Comenius",null,"f",31.5,null,0]
["Verschiedenes","P90.1522","Tagebuch für Lehrpersonen 18/19, SpiralFlex","Ingold",null,"f",32.5,null,0]
["Verschiedenes","P90.1523","Tagebuch für Lehrpersonen 18/19, HardCover","Ingold",null,"f",32.5,null,0]
["Verschiedenes","P90.1524","Tagebuch für Lehrpersonen 18/19, SF light","Ingold",null,"f",29.5,null,0]
["Verschiedenes","P90.1526","Tagebuch für Lehrpersonen 18/19, HC light","Ingold",null,"f",29.5,null,0]
["Verschiedenes","P90.1527","schul-planer.ch 18/19, vertikal","Schulverlag+",null,"f",21,null,0]
["Verschiedenes","P90.1528","schul-planer.ch 18/19, horizontal","Schulverlag+",null,"f",21,null,0]
["Verschiedenes","P90.1529","schul-planer.ch 18/19, Ordner leer","Schulverlag+",null,"f",12,null,0]
["Verschiedenes","P90.1530","schul-planer.ch 18/19, Register","Schulverlag+",null,"f",9,null,0]
["Verschiedenes","P90.1525","Präsenzjournal 18/19","Ingold",null,"f",17.5,null,0]
["Verschiedenes","P90.2544","Unterrichtsheft, Ausgabe U (5mm kariert) ","VfU",null,"f",15,null,0]
["Verschiedenes","P90.2547","Notenheft für Klassenlehrperson","VfU",null,"f",12,null,0]
[]
["Verschiedenes","P90.1747","Schulkontrolle ","LVUR",null,"o",5.5,null,0]
["Verschiedenes","P90.1800","Zeugnismappe (für neu eintr. Kinder)","LVUR",null,"o",9,null,0]
["Verschiedenes","P90.1805","Zeugnisblätter PC-Fassung (50 Ex.)","LVUR",null,"o",8.4,null,0]
["Verschiedenes","P90.5000","Berufsauftrag für die Lehrpersonen","LVUR",null,"o",0,null,0]
[]
["Verschiedenes","P90.1752","Schulärztliches Untersuchungsblatt Knaben","LVUR",null,"o",2,null,0]
["Verschiedenes","P90.1753","Schulärztliches Untersuchungsblatt Mädchen","LVUR",null,"o",2,null,0]
["Verschiedenes","P90.2102","Zahnbürste M27 (Ersatz)","Profimed","KG/US","f",0,null,0]
["Verschiedenes","P90.4000","Leuchtweste","TCS","1.","f",0,null,0]
[]
["Verschiedenes","P90.2546","Eine Beurteilung, die weiter hilft","BPZ",null,"f",5,null,0]
["Verschiedenes","P90.2190","Lichtblick für helle Köpfe","LMVZ",null,"f",40.4,null,0]
["Verschiedenes","P90.2553","TastaBasta, Trainingsheft mit CR","LMVZ",null,"f",42.5,null,0]
["Verschiedenes","P90.2554","TastaBasta, CR Lehrperson","LMVZ",null,"f",55.2,null,0]
["Verschiedenes","P90.2555","Bücher-Kontrollzettel (100 Ex.)","LMVZ",null,"f",11.4,null,0]
[]
["Verschiedenes","P90.3002","Krisenkompass","Schulverlag+","1.-9.","f",85,null,0]
["Verschiedenes","P90.3003","Lerncoaching im Unterricht","Schulverlag+","1.-9.","f",38,null,0]
["Verschiedenes","P60.2903","Bewegungspausen","LMVZ","1.-9.","f",25,null,0]
["Verschiedenes","P90.3005","AdL - Altersdurchmischtes Lernen","Schulverlag+","1.-6.","f",48,null,0]
["Verschiedenes","P90.3006","Stärken entdecken - erfassen - entwickeln","Schulverlag+","1.-9.","f",44,null,0]
["Verschiedenes","P90.3007","Projektorientiert arbeiten","Schulverlag+","3.-6.","f",48,null,0]
["Verschiedenes","P90.3008","Körper und Lernen","Schulverlag+","KG-9.","f",38,null,0]
["Verschiedenes","P90.3009","Altersdurchmischtes Lernen entwickeln","Schulverlag+","1.-6.","f",48,null,0]
["Verschiedenes","P90.3010","Kompetenzorientierte Aufgaben ","Schulverlag+","1.-6.","f",28,null,0]
["Verschiedenes","P90.3012","Mit Lernlandkarten unterrichten und lernen","Schulverlag+","1.-6.","f",38,null,0]
["Verschiedenes","P90.3015","Lernlandkarte Deutsch","Schulverlag+","1.-3.","f",9.5,null,0]
[]
["Verschiedenes","P90.3100","Das leere Buch, SpiralFlex A4+","Ingold","KG-9.","f",12.5,null,0]
["Verschiedenes","P90.3110","Das leere Buch, SpiralFlex light A4+","Ingold","KG-9.","f",9.9,null,0]
["Verschiedenes","P90.3120","Das leere Buch, gebunden A4","Ingold","KG-9.","f",13.5,null,0]
["Verschiedenes","P90.3130","Das leere Buch, Quadro 21x21","Ingold","KG-9.","f",10.7,null,0]
[]
[null,"Artikeltitel",null,"ISBN",null,null,"VKP"]
["Weitere Artikel Wünsche",null,null,null,null,null,null,null,{"$f":"G58*H58","v":0}]
["Weitere Artikel Wünsche",null,null,null,null,null,null,null,0]
["Weitere Artikel Wünsche",null,null,null,null,null,null,null,0]
["Weitere Artikel Wünsche",null,null,null,null,null,null,null,0]
["Weitere Artikel Wünsche",null,null,null,null,null,null,null,0]
["Weitere Artikel Wünsche",null,null,null,null,null,null,null,0]
["Weitere Artikel Wünsche",null,null,null,null,null,null,null,0]
["Weitere Artikel Wünsche",null,null,null,null,null,null,null,0]
["Weitere Artikel Wünsche",null,null,null,null,null,null,null,0]
["Weitere Artikel Wünsche",null,null,null,null,null,null,null,0]
["Weitere Artikel Wünsche",null,null,null,null,null,null,null,0]
["Weitere Artikel Wünsche",null,null,null,null,null,null,null,0]
["Weitere Artikel Wünsche",null,null,null,null,null,null,null,0]
["Weitere Artikel Wünsche",null,null,null,null,null,null,null,0]
["Weitere Artikel Wünsche",null,null,null,null,null,null,null,0]
["Weitere Artikel Wünsche",null,null,null,null,null,null,null,0]
["Weitere Artikel Wünsche",null,null,null,null,null,null,null,0]
["Weitere Artikel Wünsche",null,null,null,null,null,null,null,0]
["Weitere Artikel Wünsche",null,null,null,null,null,null,null,0]
["Weitere Artikel Wünsche",null,null,null,null,null,null,null,0]
["Weitere Artikel Wünsche",null,null,null,null,null,null,null,0]
["Weitere Artikel Wünsche",null,null,null,null,null,null,null,0]
[]
["Bitte genauen Titel und ISBN-Nummer angeben!"]